Workbook

Sheet Product Overview
B8: Xignite Precious Metals Pricing API
C11: Content
C12: The XigniteMetals API is the industry-standard precious pricing API used by more than 250 firms around the world. It is designed to serve the needs of precious metal brokers, miners, refiners or anyone involved in the Gold, Silver, Palladium and Platinum business.
C14: XigniteMetals provides 3 types of metal prices:
C16: Spot Prices | D16: Spot prices are real-time prices collected from banks, brokers, and trading platforms. They correspond to the actual market price for physical delivery of the metal.
C18: Future Prices | D18: Future prices are 10 minute delayed prices collected from CME Group (NYMEX and COMEX) corresponding to the future delivery of the metal.
C20: Fixings | D20: Fixings are daily prices collected from the London Bullion Market
D21: Association and the London Platinum and Palladium Market. They are a
D22: fixed trading price agreed upon by participating banks.
C24: Depending on the nature of your business, you may prefer using one or several of the metal
C25: price types above. Most firms involved in precious metal trading will use either Fixings or
C26: Spot Prices. Firms involved in hedging or forecasting will use Future Prices.
C27: For more information about the Metal Markets, watch our Webinar.
C29: Coverage
C30: XigniteMetals provides 4 types of data:
C32: Real-Time Data | D32: Spot prices are updated every 10 seconds and almost round the clock.
D33: Futures prices are delayed 10 minutes and updated when markets are open.
C35: Daily Data | D35: Fixings are available once or twice daily based on the metal. End-of-Day
D36: spot prices and future prices are also supported.
C38: Historical Data | D38: Daily Spot Prices, daily Fixings and daily Futures Prices are all supported.
D39: Please check additional tabs for details information on those data sets.
C41: Tick Data | D41: Intraday quote information is updated in real-time and is available for the
D42: current day. Tick data is only available for Spot Prices.

Sheet Product Details
B8: Product Details
C11: Timing and Availability
C12: The timing of the data depends on each data type:
C14: Spot Prices | D14: Available from Sundays 6:00 PM EST (market opening in Tokyo) to Fridays 4:30 PM EST (market close in New York). Unavailable Monday to Thursday 5:15 PM to 6:00 PM EST (All markets closed)
C16: Future Prices | D16: Depends on the commodity and published by the exchange:
D17: COMEX Gold Trading Hours | E17: COMEX Silver Trading Hours
D18: NYMEX Platinum Trading Hours | E18: NYMEX Palladium Trading Hours
D19: All metals are traded electronically and in open outcry.
C21: Fixings | D21: Gold: Available twice a day at 10:30 AM GMT and 3:00 PM GMT
D22: Silver Available once a day at 12:00 PM GMT
D23: Platinum: Available twice a day at 9:45 AM GMT and 2:00 PM GMT
D24: Palladium: Available twice a day at 9:45 AM GMT and 2:00 PM GMT
C25: Delivery
C26: The data is delivered via APIs over HTTP or HTTPS (Secure) using either the SOAP or REST protocol. The data can be formatted as XML, CSV, or JSON. The output of each API is customizable to your needs.
C28: Developer Resources
C29: Documentation | D29: https://www.xignite.com/product/gold-metal/
C30: API List | D30: https://www.xignite.com/product/gold-metal/api/
C31: Price List | D31: https://www.xignite.com/product/gold-metal/pricing/
C32: FAQs | D32: https://www.xignite.com/product/gold-metal/faq/
C33: WSDL | D33: https://www.xignite.com/xMetals.asmx?wsdl
C35: Usage Restrictions
C36: Internal Use | D36: No restrictions. The data can be used for any internal application.
C37: Web Display | D37: No restrictions. The data can be displayed on any web site.
C38: Mobile Display | D38: No restrictions. The data can be displayed on any mobile application.
C39: Redistribution | D39: Under standard terms, the data cannot be redistributed in machine-
D40: readable format or in a terminal product. Contact us if you need this.

Sheet Sources & Exchange Fees
B8: Sources & Exchange Fees
C11: Spot Prices
C12: Xignite spot prices are collected via direct feed from two different vendors with whom we have distribution relationships: Morningstar and Six Financial Information (SFI). Xignite consolidates those two feeds to provide redundancy, reliability and liquidity. Morningstar and SFI collect their own data from the trading desks of a large number of bankers, brokers, and metal trading platforms located in the US, Europe, The Middle East and Asia. These firms are called contributors to the feed.
C16: Contributors
C17: Here are some examples of contributors to the Morningstar and SFI feeds:
C18: Morningstar | D18: UBS, Saxo Bank, CommerzBank, etc.
C19: SFI | D19: Swiss National Bank, Deutsch Bundesbank, People's Bank of China, etc.
C21: Future Prices
C22: Xignite collects future pricing information from the CME Group via feed. Xignite calculates delayed future prices and historical future prices from this feed.
C24: Exchange Fees
C25: CME Delayed Future prices are subject to exchange fees. The fees are $187.50/mo for either NYMEX or COMEX. Xignite collects and pays the fees back to CME as part of the exchange reporting process. Xignite charges a $12.50 processing fee on top of the CME fees.
C27: Fixings
C28: Xignite collects fixing information directly from the following sources:
C29: Gold & Silver | D29: London Bullion Metal Association
C30: Platinum & | D30: London Platinum and Palladium Association
C31: Palladium
L32: W
C33: News
C34: Xignite collects its metal news information from SeekingAlpha.
C36: Base Metals
C37: Xignite collects its base metal pricing information from Johnson Matthey.

Sheet Spot Prices
AX1: Historical Spot Prices | BE1: Metal | BF1: Last | BG1: Bid | BH1: Ask | BI1: Date | BJ1: Previous | BL1: Success | BM1: Request | BN1: 0.016 | BO1: XAU | BP1: Open | BQ1: 23 | BR1: 12 | BS1: Market closes in 23 hrs.12 mins. | BT1: 1322.650024 | BU1: 1323.920044 | BV1: 1323.285034 | BW1: 1323.920044 | BX1: 1322.469971 | BY1: 10/31/2013 | BZ1: 1322.45 | CA1: 0.84 | CB1: 0.06 | CC1: 10/1/2013 | CD1: 1287.36 | CE1: 35.93 | CF1: 2.79 | CG1: 11/1/2012 | CH1: 1712.9 | CI1: -389.61 | CJ1: -22.75
AY2: XAU | AZ2: XAG | BA2: XPT | BB2: XPD | BE2: XAU | BF2: 1323.285034 | BG2: 1322.650024 | BH2: 1323.920044 | BI2: 10/30/2013 | BJ2: 1340.99
AX3: Date | AY3: Last | AZ3: Last | BA3: Last | BB3: Last | BC3: Date | BE3: XAG | BF3: 21.90285015 | BG3: 21.9015007 | BH3: 21.9041996 | BI3: 10/30/2013 | BJ3: 22.62
AX4: 10/30/2013 | AY4: 1340.994995 | AZ4: 22.625 | BA4: 1467.5 | BB4: 745.5 | BC4: =+DATEVALUE(TEXT(Table26[[#This Row],[Date]],"MM/DD/YYYY")) -> 2013-10-30 | BE4: XPT | BF4: 1450 | BG4: 1446 | BH4: 1454 | BI4: 10/30/2013 | BJ4: 1467.5
AX5: 10/29/2013 | AY5: 1344.320007 | AZ5: 22.48999977 | BA5: 1460.5 | BB5: 745.5 | BC5: =+DATEVALUE(TEXT(Table26[[#This Row],[Date]],"MM/DD/YYYY")) -> 2013-10-29 | BE5: XPD | BF5: 738.5 | BG5: 734 | BH5: 743 | BI5: 10/30/2013 | BJ5: 745.5
AX6: 10/28/2013 | AY6: 1352.650024 | AZ6: 22.4975996 | BA6: 1470 | BB6: 745.5 | BC6: =+DATEVALUE(TEXT(Table26[[#This Row],[Date]],"MM/DD/YYYY")) -> 2013-10-28
AX7: 10/27/2013 | AY7: 1351.684998 | AZ7: 22.61999989 | BA7: 1454 | BB7: 743 | BC7: =+DATEVALUE(TEXT(Table26[[#This Row],[Date]],"MM/DD/YYYY")) -> 2013-10-27
B8: Spot Prices | AX8: 10/26/2013 | AY8: 1350.734985 | AZ8: 22.54364967 | BA8: 1454 | BB8: 742.5 | BC8: =+DATEVALUE(TEXT(Table26[[#This Row],[Date]],"MM/DD/YYYY")) -> 2013-10-26
AX9: 10/25/2013 | AY9: 1350.734985 | AZ9: 22.54364967 | BA9: 1454 | BB9: 742.5 | BC9: =+DATEVALUE(TEXT(Table26[[#This Row],[Date]],"MM/DD/YYYY")) -> 2013-10-25
AB10: LIVE SPOT GOLD | AX10: 10/24/2013 | AY10: 1346.585022 | AZ10: 22.72599983 | BA10: 1451.5 | BB10: 746.5 | BC10: =+DATEVALUE(TEXT(Table26[[#This Row],[Date]],"MM/DD/YYYY")) -> 2013-10-24
C11: RealTime Spot Prices | O11: Spot Prices Heat Map | AX11: 10/23/2013 | AY11: 1332.304993 | AZ11: 22.55700016 | BA11: 1434.5 | BB11: 744 | BC11: =+DATEVALUE(TEXT(Table26[[#This Row],[Date]],"MM/DD/YYYY")) -> 2013-10-23
C12: Supported Metals | E12: Gold, Silver, Platinum, Palladium | O12: The heat map below shows live real-time spot prices from our APIs: | AB12: =+CONCATENATE("Spot Market is ",UPPER(BP1)) -> Spot Market is OPEN | AX12: 10/22/2013 | AY12: 1341.049988 | AZ12: 22.74249935 | BA12: 1450.5 | BB12: 754 | BC12: =+DATEVALUE(TEXT(Table26[[#This Row],[Date]],"MM/DD/YYYY")) -> 2013-10-22
C13: Currencies | E13: USD, AUD, CAD, CHF, EUR, GBP, HKD, ZAR | P13: Gold | S13: Silver | V13: Platinum | Y13: Palladium | AB13: =+CONCATENATE("opens in ",BQ1," hrs.",BR1," mins") -> opens in 23 hrs.12 mins | AX13: 10/21/2013 | AY13: 1314.849976 | AZ13: 22.19550037 | BA13: 1434 | BB13: 751.5 | BC13: =+DATEVALUE(TEXT(Table26[[#This Row],[Date]],"MM/DD/YYYY")) -> 2013-10-21
C14: Supported Fields | O14: =+BF2 -> 1323.285034 | R14: =+BF3 -> 21.90285015 | U14: =+BF4 -> 1450 | X14: =+BF5 -> 738.5 | AB14: =NOW() -> 2013-10-31T15:07:44.200 | AX14: 10/20/2013 | AY14: 1315.349976 | AZ14: 21.91499996 | BA14: 1437.5 | BB14: 745.5 | BC14: =+DATEVALUE(TEXT(Table26[[#This Row],[Date]],"MM/DD/YYYY")) -> 2013-10-20
C15: Symbol | E15: Date | G15: Bid | I15: Ask | AB15: Bid/Ask | AD15: =+BT1 -> 1322.650024 | AF15: =+BU1 -> 1323.920044 | AX15: 10/19/2013 | AY15: 1316.580017 | AZ15: 21.93999958 | BA15: 1438.5 | BB15: 741 | BC15: =+DATEVALUE(TEXT(Table26[[#This Row],[Date]],"MM/DD/YYYY")) -> 2013-10-19
C16: Type | E16: Time | G16: BidTime (GMT) | I16: AskTime (GMT) | O16: =+CONCATENATE("B ",TEXT($BG$2,"#,##0.00")) -> B 1,322.65 | P16: =+$BF$2-$BJ$2 -> -17.70496582 | R16: =+CONCATENATE("B ",TEXT($BG$3,"#,##0.00")) -> B 21.90 | S16: =+$BF$3-$BJ$3 -> -0.71714985 | U16: =+CONCATENATE("B ",TEXT($BG$4,"#,##0.00")) -> B 1,446.00 | V16: =+$BF$4-$BJ$4 -> -17.5 | X16: =+CONCATENATE("B ",TEXT($BG$5,"#,##0.00")) -> B 734.00 | Y16: =+$BF$5-$BJ$5 -> -7 | AB16: Low/High | AD16: =+BW1 -> 1323.920044 | AF16: =+BX1 -> 1322.469971 | AX16: 10/18/2013 | AY16: 1316.580017 | AZ16: 21.93999958 | BA16: 1438.5 | BB16: 741 | BC16: =+DATEVALUE(TEXT(Table26[[#This Row],[Date]],"MM/DD/YYYY")) -> 2013-10-18
C17: Currency | E17: Rate (Mid-point) | O17: =+CONCATENATE("A ",TEXT($BH$2,"#,##0.00")) -> A 1,323.92 | P17: =+IFERROR(P16/$BJ$2,0) -> -0.01320290667 | R17: =+CONCATENATE("A ",TEXT($BH$3,"#,##0.00")) -> A 21.90 | S17: =+IFERROR(S16/$BJ$3,0) -> -0.0317042374 | U17: =+CONCATENATE("A ",TEXT($BH$4,"#,##0.00")) -> A 1,454.00 | V17: =+IFERROR(V16/$BJ$4,0) -> -0.01192504259 | X17: =+CONCATENATE("A ",TEXT($BH$5,"#,##0.00")) -> A 743.00 | Y17: =+IFERROR(Y16/$BJ$5,0) -> -0.009389671362 | AB17: Change | AD17: =+CA1 -> 0.84 | AF17: =+CB1/100 -> 0.0006 | AX17: 10/17/2013 | AY17: 1318.52002 | AZ17: 21.85049915 | BA17: 1437.5 | BB17: 740.5 | BC17: =+DATEVALUE(TEXT(Table26[[#This Row],[Date]],"MM/DD/YYYY")) -> 2013-10-17
C18: Availability | E18: Available from Sundays 6:00 PM EDT (market opening in Tokyo) to | O18: To update the heat map enter your registration email or token below then click the refresh button. | AB18: 30 Day Chg. | AD18: =+CE1 -> 35.93 | AF18: =+CF1/100 -> 0.0279 | AX18: 10/16/2013 | AY18: 1280.630005 | AZ18: 21.34249973 | BA18: 1399 | BB18: 717.5 | BC18: =+DATEVALUE(TEXT(Table26[[#This Row],[Date]],"MM/DD/YYYY")) -> 2013-10-16
E19: Fridays 4:30 PM EDT (market close in New York). Unavailable Monday | O19: Registration Email: | V19: Macros must be enabled in Excel | AB19: 1 Year Chg. | AD19: =+CI1 -> -389.61 | AF19: =+CJ1/100 -> -0.2275 | AX19: 10/15/2013 | AY19: 1279.690002 | AZ19: 21.2699995 | BA19: 1382.5 | BB19: 706 | BC19: =+DATEVALUE(TEXT(Table26[[#This Row],[Date]],"MM/DD/YYYY")) -> 2013-10-15
E20: to Thursday 5:15 PM to 6:00 PM EDT (all markets closed) | AX20: 10/14/2013 | AY20: 1273.199951 | AZ20: 21.28530025 | BA20: 1380 | BB20: 715 | BC20: =+DATEVALUE(TEXT(Table26[[#This Row],[Date]],"MM/DD/YYYY")) -> 2013-10-14
C21: Frequency | E21: Updated every 10 seconds (true real-time available Q2-2013). | N21: Built with GetLastRealTimeMetalQuote | U21: Clicking on Refresh will consume 4 of your free trial hits. If you run out of free trial hits (numbers are 0), please contact us. | AB21: Built with GetSpotMarketSummary | AX21: 10/13/2013 | AY21: 1274.700012 | AZ21: 21.33450031 | BA21: 1370.5 | BB21: 712.5 | BC21: =+DATEVALUE(TEXT(Table26[[#This Row],[Date]],"MM/DD/YYYY")) -> 2013-10-13
AX22: 10/12/2013 | AY22: 1272.289978 | AZ22: 21.34250069 | BA22: 1372.5 | BB22: 713 | BC22: =+DATEVALUE(TEXT(Table26[[#This Row],[Date]],"MM/DD/YYYY")) -> 2013-10-12
C23: Historical Spot Prices | AX23: 10/11/2013 | AY23: 1272.289978 | AZ23: 21.34250069 | BA23: 1372.5 | BB23: 713 | BC23: =+DATEVALUE(TEXT(Table26[[#This Row],[Date]],"MM/DD/YYYY")) -> 2013-10-11
C24: Supported Fields | O24: Historical Spot Price Charts | AX24: 10/10/2013 | AY24: 1288.100037 | AZ24: 21.69999981 | BA24: 1386 | BB24: 708.5 | BC24: =+DATEVALUE(TEXT(Table26[[#This Row],[Date]],"MM/DD/YYYY")) -> 2013-10-10
C25: Symbol | E25: Currency | G25: First | I25: High | O25: The charts below show historical spot charts created in Excel from the data served by our APIs. | AX25: 10/9/2013 | AY25: 1305.599976 | AZ25: 21.88999939 | BA25: 1385 | BB25: 703 | BC25: =+DATEVALUE(TEXT(Table26[[#This Row],[Date]],"MM/DD/YYYY")) -> 2013-10-09
C26: Type | E26: Date (MM/DD/YYYY) | G26: Last | I26: Low | O26: Click Refresh to update the chart with the latest end of day data. You must enter your email above. | AX26: 10/8/2013 | AY26: 1319.63501 | AZ26: 22.32500076 | BA26: 1403.5 | BB26: 713.5 | BC26: =+DATEVALUE(TEXT(Table26[[#This Row],[Date]],"MM/DD/YYYY")) -> 2013-10-08
C27: Time Range | E27: Historical USD Spot Prices are available from 1/1/1990 to present for | AX27: 10/7/2013 | AY27: 1322.450012 | AZ27: 22.31200027 | BA27: 1398.5 | BB27: 703 | BC27: =+DATEVALUE(TEXT(Table26[[#This Row],[Date]],"MM/DD/YYYY")) -> 2013-10-07
E28: Gold and Silver, 1/2/2004 for Platinum and 1/13/2004 for Palladium. | AX28: 10/6/2013 | AY28: 1315.700012 | AZ28: 21.84945011 | BA28: 1393 | BB28: 702 | BC28: =+DATEVALUE(TEXT(Table26[[#This Row],[Date]],"MM/DD/YYYY")) -> 2013-10-06
E29: Time range availability for non-USD currencies varies. | AX29: 10/5/2013 | AY29: 1310.809998 | AZ29: 21.73099995 | BA29: 1389 | BB29: 700 | BC29: =+DATEVALUE(TEXT(Table26[[#This Row],[Date]],"MM/DD/YYYY")) -> 2013-10-05
C30: Availability | E30: Updated daily at around 12:10 AM GMT. | AX30: 10/4/2013 | AY30: 1310.809998 | AZ30: 21.73099995 | BA30: 1389 | BB30: 700 | BC30: =+DATEVALUE(TEXT(Table26[[#This Row],[Date]],"MM/DD/YYYY")) -> 2013-10-04
C31: Charts | E31: Customizable charts are available for all metals. | AX31: 10/3/2013 | AY31: 1315.969971 | AZ31: 21.67150021 | BA31: 1373 | BB31: 702.5 | BC31: =+DATEVALUE(TEXT(Table26[[#This Row],[Date]],"MM/DD/YYYY")) -> 2013-10-03
C32: Methodology | E32: Based on the last worldwide quote at 12:00 AM GMT. | AX32: 10/2/2013 | AY32: 1315.955017 | AZ32: 21.73999977 | BA32: 1392.5 | BB32: 720 | BC32: =+DATEVALUE(TEXT(Table26[[#This Row],[Date]],"MM/DD/YYYY")) -> 2013-10-02
AX33: 10/1/2013 | AY33: 1289.714966 | AZ33: 21.15899944 | BA33: 1385 | BB33: 719.5 | BC33: =+DATEVALUE(TEXT(Table26[[#This Row],[Date]],"MM/DD/YYYY")) -> 2013-10-01
C34: Intraday Spot Tick Data | AX34: 9/30/2013 | AY34: 1329.474976 | AZ34: 21.69395065 | BA34: 1406 | BB34: 724.5 | BC34: =+DATEVALUE(TEXT(Table26[[#This Row],[Date]],"MM/DD/YYYY")) -> 2013-09-30
C35: Fields | AX35: 9/29/2013 | AY35: 1340.23999 | AZ35: 21.80900002 | BA35: 1420 | BB35: 731 | BC35: =+DATEVALUE(TEXT(Table26[[#This Row],[Date]],"MM/DD/YYYY")) -> 2013-09-29
C36: Symbol | E36: Mid | G36: High | AX36: 9/28/2013 | AY36: 1336.76001 | AZ36: 21.79249954 | BA36: 1420.5 | BB36: 730 | BC36: =+DATEVALUE(TEXT(Table26[[#This Row],[Date]],"MM/DD/YYYY")) -> 2013-09-28
C37: Time (MM/DD/YY HH:MM:SS xM) | G37: Low | AX37: 9/27/2013 | AY37: 1336.76001 | AZ37: 21.79249954 | BA37: 1420.5 | BB37: 730 | BC37: =+DATEVALUE(TEXT(Table26[[#This Row],[Date]],"MM/DD/YYYY")) -> 2013-09-27
C38: Time Range | E38: Tick data is available for the current day (GMT) only. | AX38: 9/26/2013 | AY38: 1322.049988 | AZ38: 21.67599964 | BA38: 1412 | BB38: 721.5 | BC38: =+DATEVALUE(TEXT(Table26[[#This Row],[Date]],"MM/DD/YYYY")) -> 2013-09-26
C39: Frequencies | E39: 1 minute bars | G39: 15 minute bars | I39: Single tick | AX39: 9/25/2013 | AY39: 1332.950012 | AZ39: 21.80000019 | BA39: 1425 | BB39: 723 | BC39: =+DATEVALUE(TEXT(Table26[[#This Row],[Date]],"MM/DD/YYYY")) -> 2013-09-25
E40: 5 minute bars | G40: 1 hour bars | I40: Custom bars | AX40: 9/24/2013 | AY40: 1323.579956 | AZ40: 21.7329998 | BA40: 1428.5 | BB40: 721.5 | BC40: =+DATEVALUE(TEXT(Table26[[#This Row],[Date]],"MM/DD/YYYY")) -> 2013-09-24
AX41: 9/23/2013 | AY41: 1322.234985 | AZ41: 21.66499996 | BA41: 1422.5 | BB41: 715.5 | BC41: =+DATEVALUE(TEXT(Table26[[#This Row],[Date]],"MM/DD/YYYY")) -> 2013-09-23
C42: Developer Resources | AX42: 9/22/2013 | AY42: 1325.849976 | AZ42: 21.76949978 | BA42: 1433 | BB42: 720 | BC42: =+DATEVALUE(TEXT(Table26[[#This Row],[Date]],"MM/DD/YYYY")) -> 2013-09-22
C43: Real-Time Prices API | E43: Historical Prices API | G43: Intraday Tick Data API | I43: Historical Chart API | AX43: 9/21/2013 | AY43: 1326.179993 | AZ43: 21.77950001 | BA43: 1431.5 | BB43: 716.5 | BC43: =+DATEVALUE(TEXT(Table26[[#This Row],[Date]],"MM/DD/YYYY")) -> 2013-09-21
AX44: 9/20/2013 | AY44: 1326.179993 | AZ44: 21.77950001 | BA44: 1431.5 | BB44: 716.5 | BC44: =+DATEVALUE(TEXT(Table26[[#This Row],[Date]],"MM/DD/YYYY")) -> 2013-09-20
N45: Built with GetHistoricalSpotPriceRange | U45: Clicking on Refresh will consume 4 of your free trial hits. If you run out of free trial hits (numbers are 0), please contact us. | AX45: 9/19/2013 | AY45: 1367.849976 | AZ45: 23.13999939 | BA45: 1467.5 | BB45: 736.5 | BC45: =+DATEVALUE(TEXT(Table26[[#This Row],[Date]],"MM/DD/YYYY")) -> 2013-09-19
AX46: 9/18/2013 | AY46: 1362.755005 | AZ46: 22.97315025 | BA46: 1465.5 | BB46: 719 | BC46: =+DATEVALUE(TEXT(Table26[[#This Row],[Date]],"MM/DD/YYYY")) -> 2013-09-18
AX47: 9/17/2013 | AY47: 1306.900024 | AZ47: 21.7149992 | BA47: 1421.5 | BB47: 705 | BC47: =+DATEVALUE(TEXT(Table26[[#This Row],[Date]],"MM/DD/YYYY")) -> 2013-09-17
AX48: 9/16/2013 | AY48: 1314.069946 | AZ48: 21.83335018 | BA48: 1438.5 | BB48: 706 | BC48: =+DATEVALUE(TEXT(Table26[[#This Row],[Date]],"MM/DD/YYYY")) -> 2013-09-16
AX49: 9/15/2013 | AY49: 1330.709961 | AZ49: 22.30150032 | BA49: 1456.5 | BB49: 709.5 | BC49: =+DATEVALUE(TEXT(Table26[[#This Row],[Date]],"MM/DD/YYYY")) -> 2013-09-15
AX50: 9/14/2013 | AY50: 1326.440002 | AZ50: 22.21950054 | BA50: 1453.5 | BB50: 702 | BC50: =+DATEVALUE(TEXT(Table26[[#This Row],[Date]],"MM/DD/YYYY")) -> 2013-09-14
AX51: 9/13/2013 | AY51: 1326.440002 | AZ51: 22.21950054 | BA51: 1453.5 | BB51: 702 | BC51: =+DATEVALUE(TEXT(Table26[[#This Row],[Date]],"MM/DD/YYYY")) -> 2013-09-13
AX52: 9/12/2013 | AY52: 1323.024963 | AZ52: 21.89450073 | BA52: 1438.5 | BB52: 689.5 | BC52: =+DATEVALUE(TEXT(Table26[[#This Row],[Date]],"MM/DD/YYYY")) -> 2013-09-12
AX53: 9/11/2013 | AY53: 1364.599976 | AZ53: 23.14830017 | BA53: 1471.5 | BB53: 692 | BC53: =+DATEVALUE(TEXT(Table26[[#This Row],[Date]],"MM/DD/YYYY")) -> 2013-09-11
AX54: 9/10/2013 | AY54: 1365.679993 | AZ54: 23.03999996 | BA54: 1473.5 | BB54: 696 | BC54: =+DATEVALUE(TEXT(Table26[[#This Row],[Date]],"MM/DD/YYYY")) -> 2013-09-10
AX55: 9/9/2013 | AY55: 1387.315002 | AZ55: 23.71949959 | BA55: 1486.5 | BB55: 688 | BC55: =+DATEVALUE(TEXT(Table26[[#This Row],[Date]],"MM/DD/YYYY")) -> 2013-09-09
AX56: 9/8/2013 | AY56: 1387.5 | AZ56: 23.90999985 | BA56: 1492.5 | BB56: 697 | BC56: =+DATEVALUE(TEXT(Table26[[#This Row],[Date]],"MM/DD/YYYY")) -> 2013-09-08
AX57: 9/7/2013 | AY57: 1391.969971 | AZ57: 23.85499954 | BA57: 1494.5 | BB57: 697 | BC57: =+DATEVALUE(TEXT(Table26[[#This Row],[Date]],"MM/DD/YYYY")) -> 2013-09-07
AX58: 9/6/2013 | AY58: 1391.969971 | AZ58: 23.85499954 | BA58: 1494.5 | BB58: 697 | BC58: =+DATEVALUE(TEXT(Table26[[#This Row],[Date]],"MM/DD/YYYY")) -> 2013-09-06
AX59: 9/5/2013 | AY59: 1367.459961 | AZ59: 23.16300011 | BA59: 1485.5 | BB59: 685.5 | BC59: =+DATEVALUE(TEXT(Table26[[#This Row],[Date]],"MM/DD/YYYY")) -> 2013-09-05
AX60: 9/4/2013 | AY60: 1391.799988 | AZ60: 23.4385004 | BA60: 1496.5 | BB60: 692 | BC60: =+DATEVALUE(TEXT(Table26[[#This Row],[Date]],"MM/DD/YYYY")) -> 2013-09-04
AX61: 9/3/2013 | AY61: 1411.725037 | AZ61: 24.30500031 | BA61: 1536.5 | BB61: 716.5 | BC61: =+DATEVALUE(TEXT(Table26[[#This Row],[Date]],"MM/DD/YYYY")) -> 2013-09-03
AX62: 9/2/2013 | AY62: 1391.850037 | AZ62: 24.11710072 | BA62: 1520.5 | BB62: 714.5 | BC62: =+DATEVALUE(TEXT(Table26[[#This Row],[Date]],"MM/DD/YYYY")) -> 2013-09-02
AX63: 9/1/2013 | AY63: 1382.710022 | AZ63: 23.26099968 | BA63: 1519.5 | BB63: 722.5 | BC63: =+DATEVALUE(TEXT(Table26[[#This Row],[Date]],"MM/DD/YYYY")) -> 2013-09-01
AX64: 8/31/2013 | AY64: 1395.25 | AZ64: 23.52799988 | BA64: 1523 | BB64: 723.5 | BC64: =+DATEVALUE(TEXT(Table26[[#This Row],[Date]],"MM/DD/YYYY")) -> 2013-08-31
AX65: 8/30/2013 | AY65: 1395.25 | AZ65: 23.52799988 | BA65: 1523 | BB65: 723.5 | BC65: =+DATEVALUE(TEXT(Table26[[#This Row],[Date]],"MM/DD/YYYY")) -> 2013-08-30
AX66: 8/29/2013 | AY66: 1405.200012 | AZ66: 23.79899979 | BA66: 1519.5 | BB66: 736.5 | BC66: =+DATEVALUE(TEXT(Table26[[#This Row],[Date]],"MM/DD/YYYY")) -> 2013-08-29
AX67: 8/28/2013 | AY67: 1417.950012 | AZ67: 24.36700058 | BA67: 1539 | BB67: 745.5 | BC67: =+DATEVALUE(TEXT(Table26[[#This Row],[Date]],"MM/DD/YYYY")) -> 2013-08-28
AX68: 8/27/2013 | AY68: 1417.125 | AZ68: 24.54199982 | BA68: 1527.5 | BB68: 744.5 | BC68: =+DATEVALUE(TEXT(Table26[[#This Row],[Date]],"MM/DD/YYYY")) -> 2013-08-27
AX69: 8/26/2013 | AY69: 1401.27002 | AZ69: 24.22099972 | BA69: 1548.5 | BB69: 747.5 | BC69: =+DATEVALUE(TEXT(Table26[[#This Row],[Date]],"MM/DD/YYYY")) -> 2013-08-26
AX70: 8/25/2013 | AY70: 1403.934998 | AZ70: 24.23799992 | BA70: 1546 | BB70: 753.5 | BC70: =+DATEVALUE(TEXT(Table26[[#This Row],[Date]],"MM/DD/YYYY")) -> 2013-08-25
AX71: 8/24/2013 | AY71: 1397.699951 | AZ71: 24.06000042 | BA71: 1540.5 | BB71: 750.5 | BC71: =+DATEVALUE(TEXT(Table26[[#This Row],[Date]],"MM/DD/YYYY")) -> 2013-08-24
AX72: 8/23/2013 | AY72: 1397.699951 | AZ72: 24.06000042 | BA72: 1540.5 | BB72: 750.5 | BC72: =+DATEVALUE(TEXT(Table26[[#This Row],[Date]],"MM/DD/YYYY")) -> 2013-08-23
AX73: 8/22/2013 | AY73: 1378.429993 | AZ73: 23.2300005 | BA73: 1542.5 | BB73: 756.5 | BC73: =+DATEVALUE(TEXT(Table26[[#This Row],[Date]],"MM/DD/YYYY")) -> 2013-08-22
AX74: 8/21/2013 | AY74: 1356.585022 | AZ74: 22.5822506 | BA74: 1505.5 | BB74: 740.5 | BC74: =+DATEVALUE(TEXT(Table26[[#This Row],[Date]],"MM/DD/YYYY")) -> 2013-08-21
AX75: 8/20/2013 | AY75: 1369.524963 | AZ75: 23.00500011 | BA75: 1519.5 | BB75: 749.5 | BC75: =+DATEVALUE(TEXT(Table26[[#This Row],[Date]],"MM/DD/YYYY")) -> 2013-08-20
AX76: 8/19/2013 | AY76: 1365.799988 | AZ76: 23.16900063 | BA76: 1512.5 | BB76: 753.5 | BC76: =+DATEVALUE(TEXT(Table26[[#This Row],[Date]],"MM/DD/YYYY")) -> 2013-08-19
AX77: 8/18/2013 | AY77: 1376.530029 | AZ77: 23.2699995 | BA77: 1527 | BB77: 763 | BC77: =+DATEVALUE(TEXT(Table26[[#This Row],[Date]],"MM/DD/YYYY")) -> 2013-08-18
AX78: 8/17/2013 | AY78: 1376.804993 | AZ78: 23.2489996 | BA78: 1526.5 | BB78: 763 | BC78: =+DATEVALUE(TEXT(Table26[[#This Row],[Date]],"MM/DD/YYYY")) -> 2013-08-17
AX79: 8/16/2013 | AY79: 1376.804993 | AZ79: 23.2489996 | BA79: 1526.5 | BB79: 763 | BC79: =+DATEVALUE(TEXT(Table26[[#This Row],[Date]],"MM/DD/YYYY")) -> 2013-08-16
AX80: 8/15/2013 | AY80: 1364.815002 | AZ80: 22.95750046 | BA80: 1525 | BB80: 761.5 | BC80: =+DATEVALUE(TEXT(Table26[[#This Row],[Date]],"MM/DD/YYYY")) -> 2013-08-15
AX81: 8/14/2013 | AY81: 1338.210022 | AZ81: 21.88000011 | BA81: 1510.5 | BB81: 743.5 | BC81: =+DATEVALUE(TEXT(Table26[[#This Row],[Date]],"MM/DD/YYYY")) -> 2013-08-14
AX82: 8/13/2013 | AY82: 1323 | AZ82: 21.47200012 | BA82: 1498.5 | BB82: 738.5 | BC82: =+DATEVALUE(TEXT(Table26[[#This Row],[Date]],"MM/DD/YYYY")) -> 2013-08-13
AX83: 8/12/2013 | AY83: 1336.650024 | AZ83: 21.37550068 | BA83: 1497 | BB83: 738 | BC83: =+DATEVALUE(TEXT(Table26[[#This Row],[Date]],"MM/DD/YYYY")) -> 2013-08-12
AX84: 8/11/2013 | AY84: 1329.670044 | AZ84: 20.93999958 | BA84: 1507.5 | BB84: 746.5 | BC84: =+DATEVALUE(TEXT(Table26[[#This Row],[Date]],"MM/DD/YYYY")) -> 2013-08-11
AX85: 8/10/2013 | AY85: 1314.450012 | AZ85: 20.54949951 | BA85: 1502.5 | BB85: 742 | BC85: =+DATEVALUE(TEXT(Table26[[#This Row],[Date]],"MM/DD/YYYY")) -> 2013-08-10
AX86: 8/9/2013 | AY86: 1314.450012 | AZ86: 20.54949951 | BA86: 1502.5 | BB86: 742 | BC86: =+DATEVALUE(TEXT(Table26[[#This Row],[Date]],"MM/DD/YYYY")) -> 2013-08-09
AX87: 8/8/2013 | AY87: 1313.97998 | AZ87: 20.2829504 | BA87: 1494.5 | BB87: 739.5 | BC87: =+DATEVALUE(TEXT(Table26[[#This Row],[Date]],"MM/DD/YYYY")) -> 2013-08-08
AX88: 8/7/2013 | AY88: 1285.259949 | AZ88: 19.55500031 | BA88: 1437.5 | BB88: 723.5 | BC88: =+DATEVALUE(TEXT(Table26[[#This Row],[Date]],"MM/DD/YYYY")) -> 2013-08-07
AX89: 8/6/2013 | AY89: 1282.700012 | AZ89: 19.53949928 | BA89: 1429.5 | BB89: 725.5 | BC89: =+DATEVALUE(TEXT(Table26[[#This Row],[Date]],"MM/DD/YYYY")) -> 2013-08-06
AX90: 8/5/2013 | AY90: 1303.25 | AZ90: 19.70949936 | BA90: 1451.5 | BB90: 733 | BC90: =+DATEVALUE(TEXT(Table26[[#This Row],[Date]],"MM/DD/YYYY")) -> 2013-08-05
AX91: 8/4/2013 | AY91: 1314.150024 | AZ91: 19.92099953 | BA91: 1449.5 | BB91: 731.5 | BC91: =+DATEVALUE(TEXT(Table26[[#This Row],[Date]],"MM/DD/YYYY")) -> 2013-08-04
AX92: 8/3/2013 | AY92: 1311.959961 | AZ92: 19.89000034 | BA92: 1449.5 | BB92: 731 | BC92: =+DATEVALUE(TEXT(Table26[[#This Row],[Date]],"MM/DD/YYYY")) -> 2013-08-03
AX93: 8/2/2013 | AY93: 1311.959961 | AZ93: 19.89000034 | BA93: 1449.5 | BB93: 731 | BC93: =+DATEVALUE(TEXT(Table26[[#This Row],[Date]],"MM/DD/YYYY")) -> 2013-08-02
AX94: 8/1/2013 | AY94: 1303.599976 | AZ94: 19.57000065 | BA94: 1437.5 | BB94: 734 | BC94: =+DATEVALUE(TEXT(Table26[[#This Row],[Date]],"MM/DD/YYYY")) -> 2013-08-01
AX95: 7/31/2013 | AY95: 1325.299988 | AZ95: 19.88000011 | BA95: 1443 | BB95: 730.5 | BC95: =+DATEVALUE(TEXT(Table26[[#This Row],[Date]],"MM/DD/YYYY")) -> 2013-07-31
AX96: 7/30/2013 | AY96: 1327.705017 | AZ96: 19.7699995 | BA96: 1438.5 | BB96: 730.5 | BC96: =+DATEVALUE(TEXT(Table26[[#This Row],[Date]],"MM/DD/YYYY")) -> 2013-07-30
AX97: 7/29/2013 | AY97: 1326.209961 | AZ97: 19.84549999 | BA97: 1438.5 | BB97: 742.5 | BC97: =+DATEVALUE(TEXT(Table26[[#This Row],[Date]],"MM/DD/YYYY")) -> 2013-07-29
AX98: 7/28/2013 | AY98: 1333.164978 | AZ98: 20.0095005 | BA98: 1431.5 | BB98: 727.5 | BC98: =+DATEVALUE(TEXT(Table26[[#This Row],[Date]],"MM/DD/YYYY")) -> 2013-07-28
AX99: 7/27/2013 | AY99: 1333.26001 | AZ99: 20.00244999 | BA99: 1430.5 | BB99: 726.5 | BC99: =+DATEVALUE(TEXT(Table26[[#This Row],[Date]],"MM/DD/YYYY")) -> 2013-07-27
AX100: 7/26/2013 | AY100: 1333.26001 | AZ100: 20.00244999 | BA100: 1430.5 | BB100: 726.5 | BC100: =+DATEVALUE(TEXT(Table26[[#This Row],[Date]],"MM/DD/YYYY")) -> 2013-07-26
AX101: 7/25/2013 | AY101: 1334.75 | AZ101: 20.29500008 | BA101: 1450.5 | BB101: 740 | BC101: =+DATEVALUE(TEXT(Table26[[#This Row],[Date]],"MM/DD/YYYY")) -> 2013-07-25
AX102: 7/24/2013 | AY102: 1318.450012 | AZ102: 20.14999962 | BA102: 1445.5 | BB102: 748 | BC102: =+DATEVALUE(TEXT(Table26[[#This Row],[Date]],"MM/DD/YYYY")) -> 2013-07-24
AX103: 7/23/2013 | AY103: 1343.950012 | AZ103: 20.41499996 | BA103: 1447.5 | BB103: 741.5 | BC103: =+DATEVALUE(TEXT(Table26[[#This Row],[Date]],"MM/DD/YYYY")) -> 2013-07-23
AX104: 7/22/2013 | AY104: 1336.505005 | AZ104: 20.57750034 | BA104: 1448.5 | BB104: 747.5 | BC104: =+DATEVALUE(TEXT(Table26[[#This Row],[Date]],"MM/DD/YYYY")) -> 2013-07-22
AX105: 7/21/2013 | AY105: 1313.600037 | AZ105: 19.86999989 | BA105: 1440.5 | BB105: 751.5 | BC105: =+DATEVALUE(TEXT(Table26[[#This Row],[Date]],"MM/DD/YYYY")) -> 2013-07-21
AX106: 7/20/2013 | AY106: 1296.280029 | AZ106: 19.51499939 | BA106: 1430 | BB106: 747.5 | BC106: =+DATEVALUE(TEXT(Table26[[#This Row],[Date]],"MM/DD/YYYY")) -> 2013-07-20
AX107: 7/19/2013 | AY107: 1296.280029 | AZ107: 19.51499939 | BA107: 1430 | BB107: 747.5 | BC107: =+DATEVALUE(TEXT(Table26[[#This Row],[Date]],"MM/DD/YYYY")) -> 2013-07-19
AX108: 7/18/2013 | AY108: 1284.14502 | AZ108: 19.40749931 | BA108: 1413.5 | BB108: 745.5 | BC108: =+DATEVALUE(TEXT(Table26[[#This Row],[Date]],"MM/DD/YYYY")) -> 2013-07-18
AX109: 7/17/2013 | AY109: 1275.350037 | AZ109: 19.37549973 | BA109: 1408.5 | BB109: 735.5 | BC109: =+DATEVALUE(TEXT(Table26[[#This Row],[Date]],"MM/DD/YYYY")) -> 2013-07-17
AX110: 7/16/2013 | AY110: 1291.075012 | AZ110: 19.97700024 | BA110: 1423 | BB110: 734.5 | BC110: =+DATEVALUE(TEXT(Table26[[#This Row],[Date]],"MM/DD/YYYY")) -> 2013-07-16
AX111: 7/15/2013 | AY111: 1283.299988 | AZ111: 19.93645 | BA111: 1422 | BB111: 732.5 | BC111: =+DATEVALUE(TEXT(Table26[[#This Row],[Date]],"MM/DD/YYYY")) -> 2013-07-15
AX112: 7/14/2013 | AY112: 1292.02002 | AZ112: 20.11464977 | BA112: 1417 | BB112: 725.5 | BC112: =+DATEVALUE(TEXT(Table26[[#This Row],[Date]],"MM/DD/YYYY")) -> 2013-07-14
AX113: 7/13/2013 | AY113: 1285.600037 | AZ113: 19.94099998 | BA113: 1408 | BB113: 722.5 | BC113: =+DATEVALUE(TEXT(Table26[[#This Row],[Date]],"MM/DD/YYYY")) -> 2013-07-13
AX114: 7/12/2013 | AY114: 1285.600037 | AZ114: 19.94099998 | BA114: 1408 | BB114: 722.5 | BC114: =+DATEVALUE(TEXT(Table26[[#This Row],[Date]],"MM/DD/YYYY")) -> 2013-07-12
AX115: 7/11/2013 | AY115: 1285.23999 | AZ115: 20.15999985 | BA115: 1411 | BB115: 723.5 | BC115: =+DATEVALUE(TEXT(Table26[[#This Row],[Date]],"MM/DD/YYYY")) -> 2013-07-11
AX116: 7/10/2013 | AY116: 1288.665039 | AZ116: 19.87049961 | BA116: 1396 | BB116: 725.5 | BC116: =+DATEVALUE(TEXT(Table26[[#This Row],[Date]],"MM/DD/YYYY")) -> 2013-07-10
AX117: 7/9/2013 | AY117: 1250.019958 | AZ117: 19.28999996 | BA117: 1370 | BB117: 700 | BC117: =+DATEVALUE(TEXT(Table26[[#This Row],[Date]],"MM/DD/YYYY")) -> 2013-07-09
AX118: 7/8/2013 | AY118: 1236.340027 | AZ118: 19.08850002 | BA118: 1359 | BB118: 695 | BC118: =+DATEVALUE(TEXT(Table26[[#This Row],[Date]],"MM/DD/YYYY")) -> 2013-07-08
AX119: 7/7/2013 | AY119: 1225.445007 | AZ119: 18.97000027 | BA119: 1333 | BB119: 688 | BC119: =+DATEVALUE(TEXT(Table26[[#This Row],[Date]],"MM/DD/YYYY")) -> 2013-07-07
AX120: 7/6/2013 | AY120: 1223.285034 | AZ120: 18.91799927 | BA120: 1327 | BB120: 683.5 | BC120: =+DATEVALUE(TEXT(Table26[[#This Row],[Date]],"MM/DD/YYYY")) -> 2013-07-06
AX121: 7/5/2013 | AY121: 1223.285034 | AZ121: 18.91799927 | BA121: 1327 | BB121: 683.5 | BC121: =+DATEVALUE(TEXT(Table26[[#This Row],[Date]],"MM/DD/YYYY")) -> 2013-07-05
AX122: 7/4/2013 | AY122: 1249.669983 | AZ122: 19.5890007 | BA122: 1342 | BB122: 678 | BC122: =+DATEVALUE(TEXT(Table26[[#This Row],[Date]],"MM/DD/YYYY")) -> 2013-07-04
AX123: 7/3/2013 | AY123: 1255.369995 | AZ123: 19.79799938 | BA123: 1344 | BB123: 685 | BC123: =+DATEVALUE(TEXT(Table26[[#This Row],[Date]],"MM/DD/YYYY")) -> 2013-07-03
AX124: 7/2/2013 | AY124: 1243.644958 | AZ124: 19.43000031 | BA124: 1372 | BB124: 687 | BC124: =+DATEVALUE(TEXT(Table26[[#This Row],[Date]],"MM/DD/YYYY")) -> 2013-07-02
AX125: 7/1/2013 | AY125: 1253.904968 | AZ125: 19.67100048 | BA125: 1377 | BB125: 687.5 | BC125: =+DATEVALUE(TEXT(Table26[[#This Row],[Date]],"MM/DD/YYYY")) -> 2013-07-01
AX126: 6/30/2013 | AY126: 1238.844971 | AZ126: 19.89550018 | BA126: 1335 | BB126: 660.5 | BC126: =+DATEVALUE(TEXT(Table26[[#This Row],[Date]],"MM/DD/YYYY")) -> 2013-06-30
AX127: 6/29/2013 | AY127: 1234.565002 | AZ127: 19.6875 | BA127: 1341 | BB127: 659 | BC127: =+DATEVALUE(TEXT(Table26[[#This Row],[Date]],"MM/DD/YYYY")) -> 2013-06-29
AX128: 6/28/2013 | AY128: 1234.565002 | AZ128: 19.6875 | BA128: 1341 | BB128: 659 | BC128: =+DATEVALUE(TEXT(Table26[[#This Row],[Date]],"MM/DD/YYYY")) -> 2013-06-28
AX129: 6/27/2013 | AY129: 1203 | AZ129: 18.55949974 | BA129: 1317 | BB129: 646 | BC129: =+DATEVALUE(TEXT(Table26[[#This Row],[Date]],"MM/DD/YYYY")) -> 2013-06-27
AX130: 6/26/2013 | AY130: 1229 | AZ130: 18.61750031 | BA130: 1303.5 | BB130: 631 | BC130: =+DATEVALUE(TEXT(Table26[[#This Row],[Date]],"MM/DD/YYYY")) -> 2013-06-26
AX131: 6/25/2013 | AY131: 1277.309998 | AZ131: 19.63949966 | BA131: 1348 | BB131: 664 | BC131: =+DATEVALUE(TEXT(Table26[[#This Row],[Date]],"MM/DD/YYYY")) -> 2013-06-25
AX132: 6/24/2013 | AY132: 1283.670044 | AZ132: 19.67700005 | BA132: 1334 | BB132: 662 | BC132: =+DATEVALUE(TEXT(Table26[[#This Row],[Date]],"MM/DD/YYYY")) -> 2013-06-24
AX133: 6/23/2013 | AY133: 1299.700012 | AZ133: 20.19499969 | BA133: 1378 | BB133: 675 | BC133: =+DATEVALUE(TEXT(Table26[[#This Row],[Date]],"MM/DD/YYYY")) -> 2013-06-23
AX134: 6/22/2013 | AY134: 1296.429993 | AZ134: 20.11499977 | BA134: 1376 | BB134: 675 | BC134: =+DATEVALUE(TEXT(Table26[[#This Row],[Date]],"MM/DD/YYYY")) -> 2013-06-22
AX135: 6/21/2013 | AY135: 1296.429993 | AZ135: 20.11499977 | BA135: 1376 | BB135: 675 | BC135: =+DATEVALUE(TEXT(Table26[[#This Row],[Date]],"MM/DD/YYYY")) -> 2013-06-21
AX136: 6/20/2013 | AY136: 1280.159973 | AZ136: 19.67219925 | BA136: 1360 | BB136: 661 | BC136: =+DATEVALUE(TEXT(Table26[[#This Row],[Date]],"MM/DD/YYYY")) -> 2013-06-20
AX137: 6/19/2013 | AY137: 1343.994995 | AZ137: 21.22649956 | BA137: 1412 | BB137: 693 | BC137: =+DATEVALUE(TEXT(Table26[[#This Row],[Date]],"MM/DD/YYYY")) -> 2013-06-19
AX138: 6/18/2013 | AY138: 1368.085022 | AZ138: 21.6875 | BA138: 1443 | BB138: 711.5 | BC138: =+DATEVALUE(TEXT(Table26[[#This Row],[Date]],"MM/DD/YYYY")) -> 2013-06-18
AX139: 6/17/2013 | AY139: 1384.349976 | AZ139: 21.88000011 | BA139: 1434.5 | BB139: 714.5 | BC139: =+DATEVALUE(TEXT(Table26[[#This Row],[Date]],"MM/DD/YYYY")) -> 2013-06-17
AX140: 6/16/2013 | AY140: 1389.86499 | AZ140: 22.03499985 | BA140: 1447.5 | BB140: 731 | BC140: =+DATEVALUE(TEXT(Table26[[#This Row],[Date]],"MM/DD/YYYY")) -> 2013-06-16
AX141: 6/15/2013 | AY141: 1390.679993 | AZ141: 22.07250023 | BA141: 1446.5 | BB141: 731.5 | BC141: =+DATEVALUE(TEXT(Table26[[#This Row],[Date]],"MM/DD/YYYY")) -> 2013-06-15
AX142: 6/14/2013 | AY142: 1390.679993 | AZ142: 22.07250023 | BA142: 1446.5 | BB142: 731.5 | BC142: =+DATEVALUE(TEXT(Table26[[#This Row],[Date]],"MM/DD/YYYY")) -> 2013-06-14
AX143: 6/13/2013 | AY143: 1386.150024 | AZ143: 21.8409996 | BA143: 1459.5 | BB143: 734.5 | BC143: =+DATEVALUE(TEXT(Table26[[#This Row],[Date]],"MM/DD/YYYY")) -> 2013-06-13
AX144: 6/12/2013 | AY144: 1389.035034 | AZ144: 21.77099991 | BA144: 1480.5 | BB144: 757.5 | BC144: =+DATEVALUE(TEXT(Table26[[#This Row],[Date]],"MM/DD/YYYY")) -> 2013-06-12
AX145: 6/11/2013 | AY145: 1377.630005 | AZ145: 21.7329998 | BA145: 1480.5 | BB145: 753.5 | BC145: =+DATEVALUE(TEXT(Table26[[#This Row],[Date]],"MM/DD/YYYY")) -> 2013-06-11
AX146: 6/10/2013 | AY146: 1385.5 | AZ146: 21.89750004 | BA146: 1506.5 | BB146: 769.5 | BC146: =+DATEVALUE(TEXT(Table26[[#This Row],[Date]],"MM/DD/YYYY")) -> 2013-06-10
AX147: 6/9/2013 | AY147: 1383.25 | AZ147: 21.61229992 | BA147: 1499.5 | BB147: 754.5 | BC147: =+DATEVALUE(TEXT(Table26[[#This Row],[Date]],"MM/DD/YYYY")) -> 2013-06-09
AX148: 6/8/2013 | AY148: 1383.025024 | AZ148: 21.65999985 | BA148: 1502.5 | BB148: 757.5 | BC148: =+DATEVALUE(TEXT(Table26[[#This Row],[Date]],"MM/DD/YYYY")) -> 2013-06-08
AX149: 6/7/2013 | AY149: 1383.025024 | AZ149: 21.65999985 | BA149: 1502.5 | BB149: 757.5 | BC149: =+DATEVALUE(TEXT(Table26[[#This Row],[Date]],"MM/DD/YYYY")) -> 2013-06-07
AX150: 6/6/2013 | AY150: 1412.299988 | AZ150: 22.60750008 | BA150: 1527 | BB150: 759.5 | BC150: =+DATEVALUE(TEXT(Table26[[#This Row],[Date]],"MM/DD/YYYY")) -> 2013-06-06
AX151: 6/5/2013 | AY151: 1402.050049 | AZ151: 22.53399944 | BA151: 1512.5 | BB151: 757.5 | BC151: =+DATEVALUE(TEXT(Table26[[#This Row],[Date]],"MM/DD/YYYY")) -> 2013-06-05
AX152: 6/4/2013 | AY152: 1399.830017 | AZ152: 22.55500031 | BA152: 1494.5 | BB152: 752.5 | BC152: =+DATEVALUE(TEXT(Table26[[#This Row],[Date]],"MM/DD/YYYY")) -> 2013-06-04
AX153: 6/3/2013 | AY153: 1413.150024 | AZ153: 22.74499989 | BA153: 1497.5 | BB153: 759.5 | BC153: =+DATEVALUE(TEXT(Table26[[#This Row],[Date]],"MM/DD/YYYY")) -> 2013-06-03
AX154: 6/2/2013 | AY154: 1389.72998 | AZ154: 22.32999992 | BA154: 1460.5 | BB154: 749.5 | BC154: =+DATEVALUE(TEXT(Table26[[#This Row],[Date]],"MM/DD/YYYY")) -> 2013-06-02
AX155: 6/1/2013 | AY155: 1387.850037 | AZ155: 22.25899982 | BA155: 1458.5 | BB155: 750.5 | BC155: =+DATEVALUE(TEXT(Table26[[#This Row],[Date]],"MM/DD/YYYY")) -> 2013-06-01
AX156: 5/31/2013 | AY156: 1387.850037 | AZ156: 22.25899982 | BA156: 1458.5 | BB156: 750.5 | BC156: =+DATEVALUE(TEXT(Table26[[#This Row],[Date]],"MM/DD/YYYY")) -> 2013-05-31
AX157: 5/30/2013 | AY157: 1415.5 | AZ157: 22.84000015 | BA157: 1484.5 | BB157: 757.5 | BC157: =+DATEVALUE(TEXT(Table26[[#This Row],[Date]],"MM/DD/YYYY")) -> 2013-05-30
AX158: 5/29/2013 | AY158: 1391.419983 | AZ158: 22.49650002 | BA158: 1454.5 | BB158: 749.5 | BC158: =+DATEVALUE(TEXT(Table26[[#This Row],[Date]],"MM/DD/YYYY")) -> 2013-05-29
AX159: 5/28/2013 | AY159: 1380.844971 | AZ159: 22.34019947 | BA159: 1458.5 | BB159: 755.5 | BC159: =+DATEVALUE(TEXT(Table26[[#This Row],[Date]],"MM/DD/YYYY")) -> 2013-05-28
AX160: 5/27/2013 | AY160: 1394.089966 | AZ160: 22.63500023 | BA160: 1451.5 | BB160: 737.25 | BC160: =+DATEVALUE(TEXT(Table26[[#This Row],[Date]],"MM/DD/YYYY")) -> 2013-05-27
AX161: 5/26/2013 | AY161: 1387.025024 | AZ161: 22.41950035 | BA161: 1454.5 | BB161: 730.5 | BC161: =+DATEVALUE(TEXT(Table26[[#This Row],[Date]],"MM/DD/YYYY")) -> 2013-05-26
AX162: 5/25/2013 | AY162: 1386.625 | AZ162: 22.40000057 | BA162: 1453.5 | BB162: 727.5 | BC162: =+DATEVALUE(TEXT(Table26[[#This Row],[Date]],"MM/DD/YYYY")) -> 2013-05-25
AX163: 5/24/2013 | AY163: 1386.625 | AZ163: 22.40000057 | BA163: 1453.5 | BB163: 727.5 | BC163: =+DATEVALUE(TEXT(Table26[[#This Row],[Date]],"MM/DD/YYYY")) -> 2013-05-24
AX164: 5/23/2013 | AY164: 1391.924988 | AZ164: 22.59399986 | BA164: 1460 | BB164: 737.5 | BC164: =+DATEVALUE(TEXT(Table26[[#This Row],[Date]],"MM/DD/YYYY")) -> 2013-05-23
AX165: 5/22/2013 | AY165: 1368.559998 | AZ165: 22.29349995 | BA165: 1469 | BB165: 745.5 | BC165: =+DATEVALUE(TEXT(Table26[[#This Row],[Date]],"MM/DD/YYYY")) -> 2013-05-22
AX166: 5/21/2013 | AY166: 1374.279968 | AZ166: 22.46899986 | BA166: 1461.5 | BB166: 744.5 | BC166: =+DATEVALUE(TEXT(Table26[[#This Row],[Date]],"MM/DD/YYYY")) -> 2013-05-21
AX167: 5/20/2013 | AY167: 1393.14502 | AZ167: 22.87450027 | BA167: 1489.5 | BB167: 747.5 | BC167: =+DATEVALUE(TEXT(Table26[[#This Row],[Date]],"MM/DD/YYYY")) -> 2013-05-20
AX168: 5/19/2013 | AY168: 1342.880005 | AZ168: 21.07999992 | BA168: 1434.5 | BB168: 738.5 | BC168: =+DATEVALUE(TEXT(Table26[[#This Row],[Date]],"MM/DD/YYYY")) -> 2013-05-19
AX169: 5/18/2013 | AY169: 1359.525024 | AZ169: 22.25999928 | BA169: 1454.5 | BB169: 737.5 | BC169: =+DATEVALUE(TEXT(Table26[[#This Row],[Date]],"MM/DD/YYYY")) -> 2013-05-18
AX170: 5/17/2013 | AY170: 1359.525024 | AZ170: 22.25999928 | BA170: 1454.5 | BB170: 737.5 | BC170: =+DATEVALUE(TEXT(Table26[[#This Row],[Date]],"MM/DD/YYYY")) -> 2013-05-17
AX171: 5/16/2013 | AY171: 1385.10498 | AZ171: 22.64649963 | BA171: 1482.5 | BB171: 740.5 | BC171: =+DATEVALUE(TEXT(Table26[[#This Row],[Date]],"MM/DD/YYYY")) -> 2013-05-16
AX172: 5/15/2013 | AY172: 1395.194946 | AZ172: 22.60649967 | BA172: 1492.5 | BB172: 728.5 | BC172: =+DATEVALUE(TEXT(Table26[[#This Row],[Date]],"MM/DD/YYYY")) -> 2013-05-15
AX173: 5/14/2013 | AY173: 1427.244995 | AZ173: 23.44400024 | BA173: 1503.5 | BB173: 730.5 | BC173: =+DATEVALUE(TEXT(Table26[[#This Row],[Date]],"MM/DD/YYYY")) -> 2013-05-14
AX174: 5/13/2013 | AY174: 1432.86499 | AZ174: 23.70300007 | BA174: 1483.5 | BB174: 717.5 | BC174: =+DATEVALUE(TEXT(Table26[[#This Row],[Date]],"MM/DD/YYYY")) -> 2013-05-13
AX175: 5/12/2013 | AY175: 1441.960022 | AZ175: 23.80799961 | BA175: 1494.5 | BB175: 708 | BC175: =+DATEVALUE(TEXT(Table26[[#This Row],[Date]],"MM/DD/YYYY")) -> 2013-05-12
AX176: 5/11/2013 | AY176: 1448.530029 | AZ176: 23.875 | BA176: 1494.5 | BB176: 708 | BC176: =+DATEVALUE(TEXT(Table26[[#This Row],[Date]],"MM/DD/YYYY")) -> 2013-05-11
AX177: 5/10/2013 | AY177: 1448.530029 | AZ177: 23.875 | BA177: 1494.5 | BB177: 708 | BC177: =+DATEVALUE(TEXT(Table26[[#This Row],[Date]],"MM/DD/YYYY")) -> 2013-05-10
AX178: 5/9/2013 | AY178: 1456.744995 | AZ178: 23.70320034 | BA178: 1507.5 | BB178: 710.0100098 | BC178: =+DATEVALUE(TEXT(Table26[[#This Row],[Date]],"MM/DD/YYYY")) -> 2013-05-09
AX179: 5/8/2013 | AY179: 1472.285034 | AZ179: 23.91699982 | BA179: 1505.5 | BB179: 695.4400024 | BC179: =+DATEVALUE(TEXT(Table26[[#This Row],[Date]],"MM/DD/YYYY")) -> 2013-05-08
AX180: 5/7/2013 | AY180: 1450.700012 | AZ180: 23.86499977 | BA180: 1482.5 | BB180: 681 | BC180: =+DATEVALUE(TEXT(Table26[[#This Row],[Date]],"MM/DD/YYYY")) -> 2013-05-07
AX181: 5/6/2013 | AY181: 1470.47998 | AZ181: 24.06000042 | BA181: 1505.5 | BB181: 696 | BC181: =+DATEVALUE(TEXT(Table26[[#This Row],[Date]],"MM/DD/YYYY")) -> 2013-05-06
AX182: 5/5/2013 | AY182: 1470.549988 | AZ182: 24.11749935 | BA182: 1500.5 | BB182: 693 | BC182: =+DATEVALUE(TEXT(Table26[[#This Row],[Date]],"MM/DD/YYYY")) -> 2013-05-05
AX183: 5/4/2013 | AY183: 1470.619995 | AZ183: 24.11700058 | BA183: 1499.5 | BB183: 693 | BC183: =+DATEVALUE(TEXT(Table26[[#This Row],[Date]],"MM/DD/YYYY")) -> 2013-05-04
AX184: 5/3/2013 | AY184: 1470.619995 | AZ184: 24.11700058 | BA184: 1499.5 | BB184: 693 | BC184: =+DATEVALUE(TEXT(Table26[[#This Row],[Date]],"MM/DD/YYYY")) -> 2013-05-03
AX185: 5/2/2013 | AY185: 1467.024963 | AZ185: 23.83300018 | BA185: 1503.5 | BB185: 692.8699951 | BC185: =+DATEVALUE(TEXT(Table26[[#This Row],[Date]],"MM/DD/YYYY")) -> 2013-05-02
AX186: 5/1/2013 | AY186: 1458.984985 | AZ186: 23.67000008 | BA186: 1473.5 | BB186: 687 | BC186: =+DATEVALUE(TEXT(Table26[[#This Row],[Date]],"MM/DD/YYYY")) -> 2013-05-01
AX187: 4/30/2013 | AY187: 1475.200012 | AZ187: 24.31709957 | BA187: 1505 | BB187: 698 | BC187: =+DATEVALUE(TEXT(Table26[[#This Row],[Date]],"MM/DD/YYYY")) -> 2013-04-30
AX188: 4/29/2013 | AY188: 1474.88501 | AZ188: 24.4959507 | BA188: 1508 | BB188: 701.5 | BC188: =+DATEVALUE(TEXT(Table26[[#This Row],[Date]],"MM/DD/YYYY")) -> 2013-04-29
AX189: 4/28/2013 | AY189: 1465 | AZ189: 24.08515072 | BA189: 1481.5 | BB189: 680 | BC189: =+DATEVALUE(TEXT(Table26[[#This Row],[Date]],"MM/DD/YYYY")) -> 2013-04-28
AX190: 4/27/2013 | AY190: 1461.625 | AZ190: 23.98300076 | BA190: 1477.5 | BB190: 679.9200134 | BC190: =+DATEVALUE(TEXT(Table26[[#This Row],[Date]],"MM/DD/YYYY")) -> 2013-04-27
AX191: 4/26/2013 | AY191: 1461.625 | AZ191: 23.98300076 | BA191: 1477.5 | BB191: 679.9200134 | BC191: =+DATEVALUE(TEXT(Table26[[#This Row],[Date]],"MM/DD/YYYY")) -> 2013-04-26
AX192: 4/25/2013 | AY192: 1464.279968 | AZ192: 24.39794922 | BA192: 1468 | BB192: 682 | BC192: =+DATEVALUE(TEXT(Table26[[#This Row],[Date]],"MM/DD/YYYY")) -> 2013-04-25
AX193: 4/24/2013 | AY193: 1430.699951 | AZ193: 23.17000008 | BA193: 1430 | BB193: 670 | BC193: =+DATEVALUE(TEXT(Table26[[#This Row],[Date]],"MM/DD/YYYY")) -> 2013-04-24
AX194: 4/23/2013 | AY194: 1413.23999 | AZ194: 22.92580032 | BA194: 1415 | BB194: 674 | BC194: =+DATEVALUE(TEXT(Table26[[#This Row],[Date]],"MM/DD/YYYY")) -> 2013-04-23
AX195: 4/22/2013 | AY195: 1426.549988 | AZ195: 23.41499996 | BA195: 1432.5 | BB195: 682.25 | BC195: =+DATEVALUE(TEXT(Table26[[#This Row],[Date]],"MM/DD/YYYY")) -> 2013-04-22
AX196: 4/21/2013 | AY196: 1407.099976 | AZ196: 23.29500008 | BA196: 1428.5 | BB196: 677 | BC196: =+DATEVALUE(TEXT(Table26[[#This Row],[Date]],"MM/DD/YYYY")) -> 2013-04-21
AX197: 4/20/2013 | AY197: 1406.299822 | AZ197: 23.29 | BA197: 1427 | BB197: 676.5699768 | BC197: =+DATEVALUE(TEXT(Table26[[#This Row],[Date]],"MM/DD/YYYY")) -> 2013-04-20
AX198: 4/19/2013 | AY198: 1403.660034 | AZ198: 23.26499939 | BA198: 1427 | BB198: 676.5699768 | BC198: =+DATEVALUE(TEXT(Table26[[#This Row],[Date]],"MM/DD/YYYY")) -> 2013-04-19
AX199: 4/18/2013 | AY199: 1394.195007 | AZ199: 23.38444996 | BA199: 1425.5 | BB199: 669 | BC199: =+DATEVALUE(TEXT(Table26[[#This Row],[Date]],"MM/DD/YYYY")) -> 2013-04-18
AX200: 4/17/2013 | AY200: 1378.625 | AZ200: 23.39550018 | BA200: 1425.699951 | BB200: 663.0500183 | BC200: =+DATEVALUE(TEXT(Table26[[#This Row],[Date]],"MM/DD/YYYY")) -> 2013-04-17
... 168 more rows

Sheet Future Prices
AP1: Historical Future Prices | AY1: Delayed Future Prices | AZ1: Date | BA1: Time | BB1: High | BC1: Low | BD1: Last | BE1: Settle | BF1: Volume | BG1: Previous | BH1: Change | BI1: Percent
AP2: Date | AQ2: XAU | AR2: XAG | AS2: XPT | AT2: XPD | AU2: Date | AY2: GC | AZ2: 10/31/2013 | BA2: 5:42:10 PM | BB2: 1334 | BC2: 1321.7 | BD2: 1323.6 | BE2: 1323.6 | BF2: 62 | BG2: 1349 | BH2: -25.4 | BI2: -1.883
AP3: 10/31/2013 | AQ3: 1323.6 | AR3: 21.832 | AS3: 1445.9 | AT3: 736.25 | AU3: =+DATEVALUE(TEXT(Table216[[#This Row],[Date]],"MM/DD/YYYY")) -> 2013-10-31 | AY3: SI | AZ3: 10/31/2013 | BA3: 5:42:10 PM | BB3: 22.335 | BC3: 21.832 | BD3: 21.832 | BE3: 21.832 | BF3: 22 | BG3: 22.946 | BH3: -1.114 | BI3: -4.855
AP4: 10/30/2013 | AQ4: 1349 | AR4: 22.946 | AS4: 1477.4 | AT4: 748.95 | AU4: =+DATEVALUE(TEXT(Table216[[#This Row],[Date]],"MM/DD/YYYY")) -> 2013-10-30 | AY4: PL | AZ4: 10/31/2013 | BA4: 5:41:25 PM | BB4: 1445.9 | BC4: 1445.9 | BD4: 1445.9 | BE4: 1445.9 | BF4: 3 | BG4: 1477.4 | BH4: -31.5 | BI4: -2.132
AP5: 10/29/2013 | AQ5: 1345.2 | AR5: 22.452 | AS5: 1459.1 | AT5: 746.05 | AU5: =+DATEVALUE(TEXT(Table216[[#This Row],[Date]],"MM/DD/YYYY")) -> 2013-10-29 | AY5: PA | AZ5: 10/31/2013 | BA5: 5:41:25 PM | BB5: 736.25 | BC5: 736.25 | BD5: 736.25 | BE5: 736.25 | BF5: 1 | BG5: 748.95 | BH5: -12.7 | BI5: -1.696
AP6: 10/28/2013 | AQ6: 1352 | AR6: 22.498 | AS6: 1470.1 | AT6: 749.45 | AU6: =+DATEVALUE(TEXT(Table216[[#This Row],[Date]],"MM/DD/YYYY")) -> 2013-10-28
AP7: 10/25/2013 | AQ7: 1352.4 | AR7: 22.603 | AS7: 1452.5 | AT7: 746.9 | AU7: =+DATEVALUE(TEXT(Table216[[#This Row],[Date]],"MM/DD/YYYY")) -> 2013-10-25
B8: Future Prices | AP8: 10/24/2013 | AQ8: 1350.2 | AR8: 22.786 | AS8: 1453.3 | AT8: 746.8 | AU8: =+DATEVALUE(TEXT(Table216[[#This Row],[Date]],"MM/DD/YYYY")) -> 2013-10-24
AP9: 10/23/2013 | AQ9: 1333.9 | AR9: 22.582 | AS9: 1436.7 | AT9: 745.1 | AU9: =+DATEVALUE(TEXT(Table216[[#This Row],[Date]],"MM/DD/YYYY")) -> 2013-10-23
AP10: 10/22/2013 | AQ10: 1342.5 | AR10: 22.754 | AS10: 1447.8 | AT10: 751.9 | AU10: =+DATEVALUE(TEXT(Table216[[#This Row],[Date]],"MM/DD/YYYY")) -> 2013-10-22
C11: Delayed Future Quotes | O11: Delayed Future Prices Heat Map | AP11: 10/21/2013 | AQ11: 1315.7 | AR11: 22.233 | AS11: 1435.7 | AT11: 749.25 | AU11: =+DATEVALUE(TEXT(Table216[[#This Row],[Date]],"MM/DD/YYYY")) -> 2013-10-21
C12: Supported Metals | E12: COMEX Gold & Silver, NYMEX Platinum & Palladium | O12: The heat map below shows delayed future prices from our APIs: | AP12: 10/18/2013 | AQ12: 1314.4 | AR12: 21.869 | AS12: 1434.8 | AT12: 739.65 | AU12: =+DATEVALUE(TEXT(Table216[[#This Row],[Date]],"MM/DD/YYYY")) -> 2013-10-18
C13: Supported Fields | O13: =+CONCATENATE("Vol ",TEXT($BF$2,"#,##0")) -> Vol 62 | P13: Gold | R13: =+CONCATENATE("Vol ",TEXT($BF$3,"#,##0")) -> Vol 22 | S13: Silver | U13: =+CONCATENATE("Vol ",TEXT($BF$4,"#,##0")) -> Vol 3 | V13: Platinum | X13: =+CONCATENATE("Vol ",TEXT($BF$5,"#,##0")) -> Vol 1 | Y13: Palladium | AP13: 10/17/2013 | AQ13: 1322.7 | AR13: 21.903 | AS13: 1431.9 | AT13: 736.8 | AU13: =+DATEVALUE(TEXT(Table216[[#This Row],[Date]],"MM/DD/YYYY")) -> 2013-10-17
C14: Symbol | E14: ExchangeSymbol | G14: Low | I14: PreviousClose | O14: =+IF($BE$2<>0,$BE$2,$BD$2) -> 1323.6 | R14: =+IF($BE$3<>0,$BE$3,$BD$3) -> 21.832 | U14: =+IF($BE$4<>0,$BE$4,$BD$4) -> 1445.9 | X14: =+IF($BE$5<>0,$BE$5,$BD$5) -> 736.25 | AP14: 10/16/2013 | AQ14: 1282 | AR14: 21.32 | AS14: 1395.2 | AT14: 712.55 | AU14: =+DATEVALUE(TEXT(Table216[[#This Row],[Date]],"MM/DD/YYYY")) -> 2013-10-16
C15: Name | E15: Date (MM/DD/YYYY) | G15: Last | I15: Change | AP15: 10/15/2013 | AQ15: 1273 | AR15: 21.146 | AS15: 1380.4 | AT15: 705.3 | AU15: =+DATEVALUE(TEXT(Table216[[#This Row],[Date]],"MM/DD/YYYY")) -> 2013-10-15
C16: Month | E16: Time (EST) | G16: Settle | I16: PercentChange | O16: =+CONCATENATE("H ",TEXT($BB$2,"#,##0.00")) -> H 1,334.00 | P16: =+$BH$2 -> -25.4 | R16: =+CONCATENATE("H ",TEXT($BB$3,"#,##0.00")) -> H 22.34 | S16: =+$BH$3 -> -1.114 | U16: =+CONCATENATE("H ",TEXT($BB$4,"#,##0.00")) -> H 1,445.90 | V16: =+$BH$4 -> -31.5 | X16: =+CONCATENATE("H ",TEXT($BB$5,"#,##0.00")) -> H 736.25 | Y16: =+$BH$5 -> -12.7 | AP16: 10/14/2013 | AQ16: 1276.4 | AR16: 21.31 | AS16: 1380.6 | AT16: 714.25 | AU16: =+DATEVALUE(TEXT(Table216[[#This Row],[Date]],"MM/DD/YYYY")) -> 2013-10-14
C17: Year | E17: Open | G17: Volume | I17: Currency | O17: =+CONCATENATE("L ",TEXT($BC$2,"#,##0.00")) -> L 1,321.70 | P17: =+$BI$2/100 -> -0.01883 | R17: =+CONCATENATE("L ",TEXT($BC$3,"#,##0.00")) -> L 21.83 | S17: =+$BI$3/100 -> -0.04855 | U17: =+CONCATENATE("L ",TEXT($BC$4,"#,##0.00")) -> L 1,445.90 | V17: =+$BI$4/100 -> -0.02132 | X17: =+CONCATENATE("L ",TEXT($BC$5,"#,##0.00")) -> L 736.25 | Y17: =+$BI$5/100 -> -0.01696 | AP17: 10/11/2013 | AQ17: 1268 | AR17: 21.215 | AS17: 1372 | AT17: 712.3 | AU17: =+DATEVALUE(TEXT(Table216[[#This Row],[Date]],"MM/DD/YYYY")) -> 2013-10-11
C18: Exchange | E18: High | G18: OpenInterest | O18: To update the heat map enter your registration email or token below then click the refresh button. | AP18: 10/10/2013 | AQ18: 1296.6 | AR18: 21.85 | AS18: 1392.3 | AT18: 711.55 | AU18: =+DATEVALUE(TEXT(Table216[[#This Row],[Date]],"MM/DD/YYYY")) -> 2013-10-10
C19: Delay | E19: 10 minutes (standard CME delay period) | O19: Registration Email: | Y19: Macros must be enabled in Excel | AP19: 10/9/2013 | AQ19: 1306.9 | AR19: 21.846 | AS19: 1379.5 | AT19: 703.1 | AU19: =+DATEVALUE(TEXT(Table216[[#This Row],[Date]],"MM/DD/YYYY")) -> 2013-10-09
C20: Frequency | E20: Continuously updated during market hours. | AP20: 10/8/2013 | AQ20: 1324.2 | AR20: 22.397 | AS20: 1400.2 | AT20: 713.9 | AU20: =+DATEVALUE(TEXT(Table216[[#This Row],[Date]],"MM/DD/YYYY")) -> 2013-10-08
C21: Charts | E21: Customizable static intraday charts available. | N21: Built with GetDelayedMetalFuture | U21: Clicking on Refresh will consume 4 of your free trial hits. If you run out of free trial hits (numbers are 0), please contact us. | AP21: 10/7/2013 | AQ21: 1324.8 | AR21: 22.339 | AS21: 1398.6 | AT21: 704.35 | AU21: =+DATEVALUE(TEXT(Table216[[#This Row],[Date]],"MM/DD/YYYY")) -> 2013-10-07
C22: Availability | E22: COMEX Gold Trading Hours | H22: COMEX Silver Trading Hours | AP22: 10/4/2013 | AQ22: 1309.7 | AR22: 21.705 | AS22: 1384.7 | AT22: 700.95 | AU22: =+DATEVALUE(TEXT(Table216[[#This Row],[Date]],"MM/DD/YYYY")) -> 2013-10-04
E23: NYMEX Platinum Trading Hours | H23: NYMEX Palladium Trading Hours | AP23: 10/3/2013 | AQ23: 1317.4 | AR23: 21.739 | AS23: 1369.5 | AT23: 699.2 | AU23: =+DATEVALUE(TEXT(Table216[[#This Row],[Date]],"MM/DD/YYYY")) -> 2013-10-03
E24: All metals are traded electronically and in open outcry. | AP24: 10/2/2013 | AQ24: 1320.6 | AR24: 21.846 | AS24: 1389.8 | AT24: 720.2 | AU24: =+DATEVALUE(TEXT(Table216[[#This Row],[Date]],"MM/DD/YYYY")) -> 2013-10-02
E25: Quotes available by contract or for all active contracts. | O25: Historical Future Prices Charts | AP25: 10/1/2013 | AQ25: 1286 | AR25: 21.124 | AS25: 1381.7 | AT25: 717.9 | AU25: =+DATEVALUE(TEXT(Table216[[#This Row],[Date]],"MM/DD/YYYY")) -> 2013-10-01
C26: Historical Future Quotes | O26: The charts below show historical end of day data for the front month contract by metal. | AP26: 9/30/2013 | AQ26: 1326.5 | AR26: 21.656 | AS26: 1408.1 | AT26: 726.15 | AU26: =+DATEVALUE(TEXT(Table216[[#This Row],[Date]],"MM/DD/YYYY")) -> 2013-09-30
C27: Supported Fields | AP27: 9/27/2013 | AQ27: 1338.4 | AR27: 21.783 | AS27: 1414.9 | AT27: 730.8 | AU27: =+DATEVALUE(TEXT(Table216[[#This Row],[Date]],"MM/DD/YYYY")) -> 2013-09-27
C28: Symbol | E28: ExchangeSymbol | G28: Last | I28: Change | AP28: 9/26/2013 | AQ28: 1323.6 | AR28: 21.72 | AS28: 1410.2 | AT28: 722.15 | AU28: =+DATEVALUE(TEXT(Table216[[#This Row],[Date]],"MM/DD/YYYY")) -> 2013-09-26
C29: Name | E29: Date (MM/DD/YYYY) | G29: Settle | I29: PercentChange | AP29: 9/25/2013 | AQ29: 1335.9 | AR29: 21.838 | AS29: 1428.3 | AT29: 724.2 | AU29: =+DATEVALUE(TEXT(Table216[[#This Row],[Date]],"MM/DD/YYYY")) -> 2013-09-25
C30: Month | E30: Open | G30: Volume | I30: Currency | AP30: 9/24/2013 | AQ30: 1316 | AR30: 21.539 | AS30: 1418.3 | AT30: 718.35 | AU30: =+DATEVALUE(TEXT(Table216[[#This Row],[Date]],"MM/DD/YYYY")) -> 2013-09-24
C31: Year | E31: High | G31: OpenInterest | AP31: 9/23/2013 | AQ31: 1326.9 | AR31: 21.805 | AS31: 1425.4 | AT31: 716.3 | AU31: =+DATEVALUE(TEXT(Table216[[#This Row],[Date]],"MM/DD/YYYY")) -> 2013-09-23
C32: Exchange | E32: Low | G32: PreviousClose | AP32: 9/20/2013 | AQ32: 1332.5 | AR32: 21.876 | AS32: 1432.1 | AT32: 720.3 | AU32: =+DATEVALUE(TEXT(Table216[[#This Row],[Date]],"MM/DD/YYYY")) -> 2013-09-20
C33: Availability | E33: Updated at market close (after 5:15PM EST). | AP33: 9/19/2013 | AQ33: 1369.4 | AR33: 23.242 | AS33: 1472.4 | AT33: 736.55 | AU33: =+DATEVALUE(TEXT(Table216[[#This Row],[Date]],"MM/DD/YYYY")) -> 2013-09-19
C34: Methodology | E34: Based on VWAP of trades executed on Globex during settlement | AP34: 9/18/2013 | AQ34: 1307.8 | AR34: 21.514 | AS34: 1424.6 | AT34: 701.45 | AU34: =+DATEVALUE(TEXT(Table216[[#This Row],[Date]],"MM/DD/YYYY")) -> 2013-09-18
E35: session. More info: | G35: CME Settlement Methodology | AP35: 9/17/2013 | AQ35: 1309.5 | AR35: 21.735 | AS35: 1421.8 | AT35: 705.25 | AU35: =+DATEVALUE(TEXT(Table216[[#This Row],[Date]],"MM/DD/YYYY")) -> 2013-09-17
E36: Data returned is the concatenation of all the front-month contracts | AP36: 9/16/2013 | AQ36: 1317.9 | AR36: 21.963 | AS36: 1440.6 | AT36: 704.3 | AU36: =+DATEVALUE(TEXT(Table216[[#This Row],[Date]],"MM/DD/YYYY")) -> 2013-09-16
E37: settlement information during the requested time period. | AP37: 9/13/2013 | AQ37: 1308.4 | AR37: 21.67 | AS37: 1443.6 | AT37: 697.5 | AU37: =+DATEVALUE(TEXT(Table216[[#This Row],[Date]],"MM/DD/YYYY")) -> 2013-09-13
C38: Time Range | E38: Gold | F38: 1/1/1998 to present | H38: Platinum | I38: 1/1/1994 to present | AP38: 9/12/2013 | AQ38: 1330.4 | AR38: 22.099 | AS38: 1441.8 | AT38: 691.2 | AU38: =+DATEVALUE(TEXT(Table216[[#This Row],[Date]],"MM/DD/YYYY")) -> 2013-09-12
E39: Silver | F39: 1/1/1998 to present | H39: Palladium | I39: 1/1/1994 to present | AP39: 9/11/2013 | AQ39: 1363.9 | AR39: 23.121 | AS39: 1472.6 | AT39: 689.6 | AU39: =+DATEVALUE(TEXT(Table216[[#This Row],[Date]],"MM/DD/YYYY")) -> 2013-09-11
C40: Charts | E40: Customizable static historical charts available. | AP40: 9/10/2013 | AQ40: 1364.1 | AR40: 22.966 | AS40: 1473.2 | AT40: 691.05 | AU40: =+DATEVALUE(TEXT(Table216[[#This Row],[Date]],"MM/DD/YYYY")) -> 2013-09-10
AP41: 9/9/2013 | AQ41: 1386.8 | AR41: 23.668 | AS41: 1482.1 | AT41: 681.4 | AU41: =+DATEVALUE(TEXT(Table216[[#This Row],[Date]],"MM/DD/YYYY")) -> 2013-09-09
C42: Developer Resources | AP42: 9/6/2013 | AQ42: 1386.7 | AR42: 23.842 | AS42: 1494.8 | AT42: 695.45 | AU42: =+DATEVALUE(TEXT(Table216[[#This Row],[Date]],"MM/DD/YYYY")) -> 2013-09-06
C43: Delayed Quote API | E43: Historical Quote API | G43: Intraday Chart API | I43: Historical Chart API | AP43: 9/5/2013 | AQ43: 1373.1 | AR43: 23.206 | AS43: 1481.2 | AT43: 685.8 | AU43: =+DATEVALUE(TEXT(Table216[[#This Row],[Date]],"MM/DD/YYYY")) -> 2013-09-05
AP44: 9/4/2013 | AQ44: 1389.9 | AR44: 23.369 | AS44: 1493.8 | AT44: 696.6 | AU44: =+DATEVALUE(TEXT(Table216[[#This Row],[Date]],"MM/DD/YYYY")) -> 2013-09-04
N45: Built with GetHistoricalMetalFutureRange | U45: Clicking on Refresh will consume 4 of your free trial hits. If you run out of free trial hits (numbers are 0), please contact us. | AP45: 9/3/2013 | AQ45: 1412 | AR45: 24.382 | AS45: 1537.3 | AT45: 716.2 | AU45: =+DATEVALUE(TEXT(Table216[[#This Row],[Date]],"MM/DD/YYYY")) -> 2013-09-03
AP46: 8/30/2013 | AQ46: 1396.1 | AR46: 23.463 | AS46: 1526.2 | AT46: 722.1 | AU46: =+DATEVALUE(TEXT(Table216[[#This Row],[Date]],"MM/DD/YYYY")) -> 2013-08-30
AP47: 8/29/2013 | AQ47: 1412.9 | AR47: 24.09 | AS47: 1521.5 | AT47: 737.75 | AU47: =+DATEVALUE(TEXT(Table216[[#This Row],[Date]],"MM/DD/YYYY")) -> 2013-08-29
AP48: 8/28/2013 | AQ48: 1419 | AR48: 24.389 | AS48: 1539.2 | AT48: 746.05 | AU48: =+DATEVALUE(TEXT(Table216[[#This Row],[Date]],"MM/DD/YYYY")) -> 2013-08-28
AP49: 8/27/2013 | AQ49: 1420.6 | AR49: 24.649 | AS49: 1531.2 | AT49: 748.9 | AU49: =+DATEVALUE(TEXT(Table216[[#This Row],[Date]],"MM/DD/YYYY")) -> 2013-08-27
AP50: 8/26/2013 | AQ50: 1393 | AR50: 24.008 | AS50: 1543.6 | AT50: 745.55 | AU50: =+DATEVALUE(TEXT(Table216[[#This Row],[Date]],"MM/DD/YYYY")) -> 2013-08-26
AP51: 8/23/2013 | AQ51: 1395.7 | AR51: 23.733 | AS51: 1540.7 | AT51: 750.35 | AU51: =+DATEVALUE(TEXT(Table216[[#This Row],[Date]],"MM/DD/YYYY")) -> 2013-08-23
AP52: 8/22/2013 | AQ52: 1371.2 | AR52: 23.03 | AS52: 1539.2 | AT52: 754.35 | AU52: =+DATEVALUE(TEXT(Table216[[#This Row],[Date]],"MM/DD/YYYY")) -> 2013-08-22
AP53: 8/21/2013 | AQ53: 1370.6 | AR53: 22.958 | AS53: 1518.2 | AT53: 746 | AU53: =+DATEVALUE(TEXT(Table216[[#This Row],[Date]],"MM/DD/YYYY")) -> 2013-08-21
AP54: 8/20/2013 | AQ54: 1373.1 | AR54: 23.066 | AS54: 1524.6 | AT54: 748.75 | AU54: =+DATEVALUE(TEXT(Table216[[#This Row],[Date]],"MM/DD/YYYY")) -> 2013-08-20
AP55: 8/19/2013 | AQ55: 1366.2 | AR55: 23.161 | AS55: 1508.1 | AT55: 752 | AU55: =+DATEVALUE(TEXT(Table216[[#This Row],[Date]],"MM/DD/YYYY")) -> 2013-08-19
AP56: 8/16/2013 | AQ56: 1371.7 | AR56: 23.317 | AS56: 1526.7 | AT56: 762.15 | AU56: =+DATEVALUE(TEXT(Table216[[#This Row],[Date]],"MM/DD/YYYY")) -> 2013-08-16
AP57: 8/15/2013 | AQ57: 1361.6 | AR57: 22.929 | AS57: 1531.4 | AT57: 755.95 | AU57: =+DATEVALUE(TEXT(Table216[[#This Row],[Date]],"MM/DD/YYYY")) -> 2013-08-15
AP58: 8/14/2013 | AQ58: 1334 | AR58: 21.781 | AS58: 1504.3 | AT58: 739.45 | AU58: =+DATEVALUE(TEXT(Table216[[#This Row],[Date]],"MM/DD/YYYY")) -> 2013-08-14
AP59: 8/13/2013 | AQ59: 1321.2 | AR59: 21.336 | AS59: 1498.8 | AT59: 738 | AU59: =+DATEVALUE(TEXT(Table216[[#This Row],[Date]],"MM/DD/YYYY")) -> 2013-08-13
AP60: 8/12/2013 | AQ60: 1334.7 | AR60: 21.332 | AS60: 1497.8 | AT60: 736.7 | AU60: =+DATEVALUE(TEXT(Table216[[#This Row],[Date]],"MM/DD/YYYY")) -> 2013-08-12
AP61: 8/9/2013 | AQ61: 1312.9 | AR61: 20.399 | AS61: 1499.7 | AT61: 740.1 | AU61: =+DATEVALUE(TEXT(Table216[[#This Row],[Date]],"MM/DD/YYYY")) -> 2013-08-09
AP62: 8/8/2013 | AQ62: 1310.7 | AR62: 20.184 | AS62: 1490.7 | AT62: 737.65 | AU62: =+DATEVALUE(TEXT(Table216[[#This Row],[Date]],"MM/DD/YYYY")) -> 2013-08-08
AP63: 8/7/2013 | AQ63: 1286.1 | AR63: 19.498 | AS63: 1437.4 | AT63: 722.25 | AU63: =+DATEVALUE(TEXT(Table216[[#This Row],[Date]],"MM/DD/YYYY")) -> 2013-08-07
AP64: 8/6/2013 | AQ64: 1283.2 | AR64: 19.515 | AS64: 1426.9 | AT64: 721.9 | AU64: =+DATEVALUE(TEXT(Table216[[#This Row],[Date]],"MM/DD/YYYY")) -> 2013-08-06
AP65: 8/5/2013 | AQ65: 1302.6 | AR65: 19.711 | AS65: 1447.2 | AT65: 734.3 | AU65: =+DATEVALUE(TEXT(Table216[[#This Row],[Date]],"MM/DD/YYYY")) -> 2013-08-05
AP66: 8/2/2013 | AQ66: 1310.6 | AR66: 19.903 | AS66: 1450.6 | AT66: 728.8 | AU66: =+DATEVALUE(TEXT(Table216[[#This Row],[Date]],"MM/DD/YYYY")) -> 2013-08-02
AP67: 8/1/2013 | AQ67: 1311 | AR67: 19.615 | AS67: 1442.9 | AT67: 730.95 | AU67: =+DATEVALUE(TEXT(Table216[[#This Row],[Date]],"MM/DD/YYYY")) -> 2013-08-01
AP68: 7/31/2013 | AQ68: 1312.4 | AR68: 19.617 | AS68: 1428.4 | AT68: 725.45 | AU68: =+DATEVALUE(TEXT(Table216[[#This Row],[Date]],"MM/DD/YYYY")) -> 2013-07-31
AP69: 7/30/2013 | AQ69: 1324 | AR69: 19.666 | AS69: 1436.6 | AT69: 727.75 | AU69: =+DATEVALUE(TEXT(Table216[[#This Row],[Date]],"MM/DD/YYYY")) -> 2013-07-30
AP70: 7/29/2013 | AQ70: 1328.4 | AR70: 19.854 | AS70: 1441.8 | AT70: 743.75 | AU70: =+DATEVALUE(TEXT(Table216[[#This Row],[Date]],"MM/DD/YYYY")) -> 2013-07-29
AP71: 7/26/2013 | AQ71: 1321.7 | AR71: 19.765 | AS71: 1421.9 | AT71: 723.1 | AU71: =+DATEVALUE(TEXT(Table216[[#This Row],[Date]],"MM/DD/YYYY")) -> 2013-07-26
AP72: 7/25/2013 | AQ72: 1329 | AR72: 20.147 | AS72: 1447 | AT72: 739.85 | AU72: =+DATEVALUE(TEXT(Table216[[#This Row],[Date]],"MM/DD/YYYY")) -> 2013-07-25
AP73: 7/24/2013 | AQ73: 1319.7 | AR73: 20.014 | AS73: 1455.2 | AT73: 744.4 | AU73: =+DATEVALUE(TEXT(Table216[[#This Row],[Date]],"MM/DD/YYYY")) -> 2013-07-24
AP74: 7/23/2013 | AQ74: 1335.1 | AR74: 20.246 | AS74: 1442.1 | AT74: 738.55 | AU74: =+DATEVALUE(TEXT(Table216[[#This Row],[Date]],"MM/DD/YYYY")) -> 2013-07-23
AP75: 7/22/2013 | AQ75: 1336.4 | AR75: 20.498 | AS75: 1447 | AT75: 749.55 | AU75: =+DATEVALUE(TEXT(Table216[[#This Row],[Date]],"MM/DD/YYYY")) -> 2013-07-22
AP76: 7/19/2013 | AQ76: 1293.3 | AR76: 19.448 | AS76: 1429.7 | AT76: 748.65 | AU76: =+DATEVALUE(TEXT(Table216[[#This Row],[Date]],"MM/DD/YYYY")) -> 2013-07-19
AP77: 7/18/2013 | AQ77: 1284.6 | AR77: 19.376 | AS77: 1413.3 | AT77: 746.4 | AU77: =+DATEVALUE(TEXT(Table216[[#This Row],[Date]],"MM/DD/YYYY")) -> 2013-07-18
AP78: 7/17/2013 | AQ78: 1277.9 | AR78: 19.409 | AS78: 1411.6 | AT78: 734.35 | AU78: =+DATEVALUE(TEXT(Table216[[#This Row],[Date]],"MM/DD/YYYY")) -> 2013-07-17
AP79: 7/16/2013 | AQ79: 1290.8 | AR79: 19.923 | AS79: 1426.1 | AT79: 734.5 | AU79: =+DATEVALUE(TEXT(Table216[[#This Row],[Date]],"MM/DD/YYYY")) -> 2013-07-16
AP80: 7/15/2013 | AQ80: 1283.8 | AR80: 19.826 | AS80: 1422.5 | AT80: 731.05 | AU80: =+DATEVALUE(TEXT(Table216[[#This Row],[Date]],"MM/DD/YYYY")) -> 2013-07-15
AP81: 7/12/2013 | AQ81: 1277.8 | AR81: 19.779 | AS81: 1409.6 | AT81: 721.6 | AU81: =+DATEVALUE(TEXT(Table216[[#This Row],[Date]],"MM/DD/YYYY")) -> 2013-07-12
AP82: 7/11/2013 | AQ82: 1280.1 | AR82: 19.943 | AS82: 1421.1 | AT82: 716.9 | AU82: =+DATEVALUE(TEXT(Table216[[#This Row],[Date]],"MM/DD/YYYY")) -> 2013-07-11
AP83: 7/10/2013 | AQ83: 1247.4 | AR83: 19.151 | AS83: 1368.1 | AT83: 712.5 | AU83: =+DATEVALUE(TEXT(Table216[[#This Row],[Date]],"MM/DD/YYYY")) -> 2013-07-10
AP84: 7/9/2013 | AQ84: 1245.9 | AR84: 19.125 | AS84: 1367.1 | AT84: 696.05 | AU84: =+DATEVALUE(TEXT(Table216[[#This Row],[Date]],"MM/DD/YYYY")) -> 2013-07-09
AP85: 7/8/2013 | AQ85: 1234.9 | AR85: 19.025 | AS85: 1360.5 | AT85: 693.8 | AU85: =+DATEVALUE(TEXT(Table216[[#This Row],[Date]],"MM/DD/YYYY")) -> 2013-07-08
AP86: 7/5/2013 | AQ86: 1212.9 | AR86: 18.726 | AS86: 1324.9 | AT86: 675.95 | AU86: =+DATEVALUE(TEXT(Table216[[#This Row],[Date]],"MM/DD/YYYY")) -> 2013-07-05
AP87: 7/3/2013 | AQ87: 1252.1 | AR87: 19.689 | AS87: 1345.3 | AT87: 684.1 | AU87: =+DATEVALUE(TEXT(Table216[[#This Row],[Date]],"MM/DD/YYYY")) -> 2013-07-03
AP88: 7/2/2013 | AQ88: 1243.6 | AR88: 19.298 | AS88: 1366.3 | AT88: 687.1 | AU88: =+DATEVALUE(TEXT(Table216[[#This Row],[Date]],"MM/DD/YYYY")) -> 2013-07-02
AP89: 7/1/2013 | AQ89: 1255.9 | AR89: 19.56 | AS89: 1379.2 | AT89: 684.9 | AU89: =+DATEVALUE(TEXT(Table216[[#This Row],[Date]],"MM/DD/YYYY")) -> 2013-07-01
AP90: 6/28/2013 | AQ90: 1223.8 | AR90: 19.451 | AS90: 1336.9 | AT90: 659.2 | AU90: =+DATEVALUE(TEXT(Table216[[#This Row],[Date]],"MM/DD/YYYY")) -> 2013-06-28
AP91: 6/27/2013 | AQ91: 1211.4 | AR91: 18.533 | AS91: 1325.2 | AT91: 649.15 | AU91: =+DATEVALUE(TEXT(Table216[[#This Row],[Date]],"MM/DD/YYYY")) -> 2013-06-27
AP92: 6/26/2013 | AQ92: 1229.6 | AR92: 18.587 | AS92: 1303.7 | AT92: 631.7 | AU92: =+DATEVALUE(TEXT(Table216[[#This Row],[Date]],"MM/DD/YYYY")) -> 2013-06-26
AP93: 6/25/2013 | AQ93: 1274.8 | AR93: 19.526 | AS93: 1350 | AT93: 667.15 | AU93: =+DATEVALUE(TEXT(Table216[[#This Row],[Date]],"MM/DD/YYYY")) -> 2013-06-25
AP94: 6/24/2013 | AQ94: 1276.8 | AR94: 19.493 | AS94: 1328.1 | AT94: 656.1 | AU94: =+DATEVALUE(TEXT(Table216[[#This Row],[Date]],"MM/DD/YYYY")) -> 2013-06-24
AP95: 6/21/2013 | AQ95: 1291.6 | AR95: 19.958 | AS95: 1362.5 | AT95: 673.25 | AU95: =+DATEVALUE(TEXT(Table216[[#This Row],[Date]],"MM/DD/YYYY")) -> 2013-06-21
AP96: 6/20/2013 | AQ96: 1285.9 | AR96: 19.822 | AS96: 1363.1 | AT96: 663.55 | AU96: =+DATEVALUE(TEXT(Table216[[#This Row],[Date]],"MM/DD/YYYY")) -> 2013-06-20
AP97: 6/19/2013 | AQ97: 1373.6 | AR97: 21.622 | AS97: 1423.2 | AT97: 694.85 | AU97: =+DATEVALUE(TEXT(Table216[[#This Row],[Date]],"MM/DD/YYYY")) -> 2013-06-19
AP98: 6/18/2013 | AQ98: 1366.6 | AR98: 21.676 | AS98: 1439.4 | AT98: 706.8 | AU98: =+DATEVALUE(TEXT(Table216[[#This Row],[Date]],"MM/DD/YYYY")) -> 2013-06-18
AP99: 6/17/2013 | AQ99: 1382.8 | AR99: 21.757 | AS99: 1434.1 | AT99: 716.3 | AU99: =+DATEVALUE(TEXT(Table216[[#This Row],[Date]],"MM/DD/YYYY")) -> 2013-06-17
AP100: 6/14/2013 | AQ100: 1387.3 | AR100: 21.953 | AS100: 1446.5 | AT100: 729.8 | AU100: =+DATEVALUE(TEXT(Table216[[#This Row],[Date]],"MM/DD/YYYY")) -> 2013-06-14
AP101: 6/13/2013 | AQ101: 1377.6 | AR101: 21.582 | AS101: 1446.2 | AT101: 729.35 | AU101: =+DATEVALUE(TEXT(Table216[[#This Row],[Date]],"MM/DD/YYYY")) -> 2013-06-13
AP102: 6/12/2013 | AQ102: 1391.8 | AR102: 21.796 | AS102: 1481.4 | AT102: 755.25 | AU102: =+DATEVALUE(TEXT(Table216[[#This Row],[Date]],"MM/DD/YYYY")) -> 2013-06-12
AP103: 6/11/2013 | AQ103: 1377 | AR103: 21.645 | AS103: 1479 | AT103: 750.75 | AU103: =+DATEVALUE(TEXT(Table216[[#This Row],[Date]],"MM/DD/YYYY")) -> 2013-06-11
AP104: 6/10/2013 | AQ104: 1386.2 | AR104: 21.921 | AS104: 1505.7 | AT104: 767.65 | AU104: =+DATEVALUE(TEXT(Table216[[#This Row],[Date]],"MM/DD/YYYY")) -> 2013-06-10
AP105: 6/7/2013 | AQ105: 1383 | AR105: 21.737 | AS105: 1501.4 | AT105: 759.45 | AU105: =+DATEVALUE(TEXT(Table216[[#This Row],[Date]],"MM/DD/YYYY")) -> 2013-06-07
AP106: 6/6/2013 | AQ106: 1415.7 | AR106: 22.701 | AS106: 1528.1 | AT106: 760.75 | AU106: =+DATEVALUE(TEXT(Table216[[#This Row],[Date]],"MM/DD/YYYY")) -> 2013-06-06
AP107: 6/5/2013 | AQ107: 1398.4 | AR107: 22.465 | AS107: 1509.4 | AT107: 754.3 | AU107: =+DATEVALUE(TEXT(Table216[[#This Row],[Date]],"MM/DD/YYYY")) -> 2013-06-05
AP108: 6/4/2013 | AQ108: 1397.1 | AR108: 22.4 | AS108: 1489.9 | AT108: 748.85 | AU108: =+DATEVALUE(TEXT(Table216[[#This Row],[Date]],"MM/DD/YYYY")) -> 2013-06-04
AP109: 6/3/2013 | AQ109: 1411.7 | AR109: 22.715 | AS109: 1496.2 | AT109: 756.8 | AU109: =+DATEVALUE(TEXT(Table216[[#This Row],[Date]],"MM/DD/YYYY")) -> 2013-06-03
AP110: 5/31/2013 | AQ110: 1392.6 | AR110: 22.228 | AS110: 1460.6 | AT110: 751.05 | AU110: =+DATEVALUE(TEXT(Table216[[#This Row],[Date]],"MM/DD/YYYY")) -> 2013-05-31
AP111: 5/30/2013 | AQ111: 1411.5 | AR111: 22.674 | AS111: 1481.5 | AT111: 758 | AU111: =+DATEVALUE(TEXT(Table216[[#This Row],[Date]],"MM/DD/YYYY")) -> 2013-05-30
AP112: 5/29/2013 | AQ112: 1391.3 | AR112: 22.445 | AS112: 1451.8 | AT112: 747.75 | AU112: =+DATEVALUE(TEXT(Table216[[#This Row],[Date]],"MM/DD/YYYY")) -> 2013-05-29
AP113: 5/28/2013 | AQ113: 1379.1 | AR113: 22.18 | AS113: 1460.6 | AT113: 756.8 | AU113: =+DATEVALUE(TEXT(Table216[[#This Row],[Date]],"MM/DD/YYYY")) -> 2013-05-28
AP114: 5/24/2013 | AQ114: 1386.8 | AR114: 22.482 | AS114: 1451.9 | AT114: 726.05 | AU114: =+DATEVALUE(TEXT(Table216[[#This Row],[Date]],"MM/DD/YYYY")) -> 2013-05-24
AP115: 5/23/2013 | AQ115: 1392 | AR115: 22.494 | AS115: 1457.2 | AT115: 738.25 | AU115: =+DATEVALUE(TEXT(Table216[[#This Row],[Date]],"MM/DD/YYYY")) -> 2013-05-23
AP116: 5/22/2013 | AQ116: 1367.6 | AR116: 22.458 | AS116: 1469.2 | AT116: 751.75 | AU116: =+DATEVALUE(TEXT(Table216[[#This Row],[Date]],"MM/DD/YYYY")) -> 2013-05-22
AP117: 5/21/2013 | AQ117: 1377.8 | AR117: 22.442 | AS117: 1458.4 | AT117: 747.7 | AU117: =+DATEVALUE(TEXT(Table216[[#This Row],[Date]],"MM/DD/YYYY")) -> 2013-05-21
AP118: 5/20/2013 | AQ118: 1384.3 | AR118: 22.568 | AS118: 1484.6 | AT118: 750 | AU118: =+DATEVALUE(TEXT(Table216[[#This Row],[Date]],"MM/DD/YYYY")) -> 2013-05-20
AP119: 5/17/2013 | AQ119: 1364.9 | AR119: 22.339 | AS119: 1468 | AT119: 739.5 | AU119: =+DATEVALUE(TEXT(Table216[[#This Row],[Date]],"MM/DD/YYYY")) -> 2013-05-17
AP120: 5/16/2013 | AQ120: 1387.1 | AR120: 22.643 | AS120: 1485.6 | AT120: 740 | AU120: =+DATEVALUE(TEXT(Table216[[#This Row],[Date]],"MM/DD/YYYY")) -> 2013-05-16
AP121: 5/15/2013 | AQ121: 1396.5 | AR121: 22.643 | AS121: 1490.7 | AT121: 728.3 | AU121: =+DATEVALUE(TEXT(Table216[[#This Row],[Date]],"MM/DD/YYYY")) -> 2013-05-15
AP122: 5/14/2013 | AQ122: 1424.7 | AR122: 23.355 | AS122: 1501.9 | AT122: 726.4 | AU122: =+DATEVALUE(TEXT(Table216[[#This Row],[Date]],"MM/DD/YYYY")) -> 2013-05-14
AP123: 5/13/2013 | AQ123: 1434.5 | AR123: 23.67 | AS123: 1484.5 | AT123: 717.95 | AU123: =+DATEVALUE(TEXT(Table216[[#This Row],[Date]],"MM/DD/YYYY")) -> 2013-05-13
AP124: 5/10/2013 | AQ124: 1436.8 | AR124: 23.632 | AS124: 1486 | AT124: 704.6 | AU124: =+DATEVALUE(TEXT(Table216[[#This Row],[Date]],"MM/DD/YYYY")) -> 2013-05-10
AP125: 5/9/2013 | AQ125: 1468.8 | AR125: 23.879 | AS125: 1516.5 | AT125: 713.65 | AU125: =+DATEVALUE(TEXT(Table216[[#This Row],[Date]],"MM/DD/YYYY")) -> 2013-05-09
AP126: 5/8/2013 | AQ126: 1473.9 | AR126: 23.892 | AS126: 1505.4 | AT126: 697.15 | AU126: =+DATEVALUE(TEXT(Table216[[#This Row],[Date]],"MM/DD/YYYY")) -> 2013-05-08
AP127: 5/7/2013 | AQ127: 1449 | AR127: 23.771 | AS127: 1481.7 | AT127: 679.5 | AU127: =+DATEVALUE(TEXT(Table216[[#This Row],[Date]],"MM/DD/YYYY")) -> 2013-05-07
AP128: 5/6/2013 | AQ128: 1468.1 | AR128: 23.918 | AS128: 1508.2 | AT128: 696 | AU128: =+DATEVALUE(TEXT(Table216[[#This Row],[Date]],"MM/DD/YYYY")) -> 2013-05-06
AP129: 5/3/2013 | AQ129: 1464.3 | AR129: 23.975 | AS129: 1501.7 | AT129: 692.2 | AU129: =+DATEVALUE(TEXT(Table216[[#This Row],[Date]],"MM/DD/YYYY")) -> 2013-05-03
AP130: 5/2/2013 | AQ130: 1467.7 | AR130: 23.79 | AS130: 1500.7 | AT130: 692.2 | AU130: =+DATEVALUE(TEXT(Table216[[#This Row],[Date]],"MM/DD/YYYY")) -> 2013-05-02
AP131: 5/1/2013 | AQ131: 1446.3 | AR131: 23.305 | AS131: 1468.7 | AT131: 683.65 | AU131: =+DATEVALUE(TEXT(Table216[[#This Row],[Date]],"MM/DD/YYYY")) -> 2013-05-01
AP132: 4/30/2013 | AQ132: 1472.2 | AR132: 24.144 | AS132: 1505.4 | AT132: 696.7 | AU132: =+DATEVALUE(TEXT(Table216[[#This Row],[Date]],"MM/DD/YYYY")) -> 2013-04-30
AP133: 4/29/2013 | AQ133: 1467.4 | AR133: 24.122 | AS133: 1505.6 | AT133: 698.1 | AU133: =+DATEVALUE(TEXT(Table216[[#This Row],[Date]],"MM/DD/YYYY")) -> 2013-04-29
AP134: 4/26/2013 | AQ134: 1453.6 | AR134: 23.758 | AS134: 1475.2 | AT134: 680.85 | AU134: =+DATEVALUE(TEXT(Table216[[#This Row],[Date]],"MM/DD/YYYY")) -> 2013-04-26
AP135: 4/25/2013 | AQ135: 1461.8 | AR135: 24.14 | AS135: 1462.8 | AT135: 680.2 | AU135: =+DATEVALUE(TEXT(Table216[[#This Row],[Date]],"MM/DD/YYYY")) -> 2013-04-25
AP136: 4/24/2013 | AQ136: 1423.4 | AR136: 22.829 | AS136: 1429.8 | AT136: 666.45 | AU136: =+DATEVALUE(TEXT(Table216[[#This Row],[Date]],"MM/DD/YYYY")) -> 2013-04-24
AP137: 4/23/2013 | AQ137: 1408.6 | AR137: 22.813 | AS137: 1416.8 | AT137: 672.15 | AU137: =+DATEVALUE(TEXT(Table216[[#This Row],[Date]],"MM/DD/YYYY")) -> 2013-04-23
AP138: 4/22/2013 | AQ138: 1421 | AR138: 23.32 | AS138: 1435.8 | AT138: 680.75 | AU138: =+DATEVALUE(TEXT(Table216[[#This Row],[Date]],"MM/DD/YYYY")) -> 2013-04-22
AP139: 4/19/2013 | AQ139: 1395.3 | AR139: 22.955 | AS139: 1423.3 | AT139: 675.9 | AU139: =+DATEVALUE(TEXT(Table216[[#This Row],[Date]],"MM/DD/YYYY")) -> 2013-04-19
AP140: 4/18/2013 | AQ140: 1392 | AR140: 23.239 | AS140: 1428.4 | AT140: 668.65 | AU140: =+DATEVALUE(TEXT(Table216[[#This Row],[Date]],"MM/DD/YYYY")) -> 2013-04-18
AP141: 4/17/2013 | AQ141: 1382.2 | AR141: 23.301 | AS141: 1434.8 | AT141: 660.25 | AU141: =+DATEVALUE(TEXT(Table216[[#This Row],[Date]],"MM/DD/YYYY")) -> 2013-04-17
AP142: 4/16/2013 | AQ142: 1386.8 | AR142: 23.622 | AS142: 1450 | AT142: 677.05 | AU142: =+DATEVALUE(TEXT(Table216[[#This Row],[Date]],"MM/DD/YYYY")) -> 2013-04-16
AP143: 4/15/2013 | AQ143: 1360.6 | AR143: 23.355 | AS143: 1424.2 | AT143: 665.85 | AU143: =+DATEVALUE(TEXT(Table216[[#This Row],[Date]],"MM/DD/YYYY")) -> 2013-04-15
AP144: 4/12/2013 | AQ144: 1501 | AR144: 26.322 | AS144: 1495.3 | AT144: 707.95 | AU144: =+DATEVALUE(TEXT(Table216[[#This Row],[Date]],"MM/DD/YYYY")) -> 2013-04-12
AP145: 4/11/2013 | AQ145: 1564.3 | AR145: 27.685 | AS145: 1535.2 | AT145: 732.2 | AU145: =+DATEVALUE(TEXT(Table216[[#This Row],[Date]],"MM/DD/YYYY")) -> 2013-04-11
AP146: 4/10/2013 | AQ146: 1558.3 | AR146: 27.639 | AS146: 1529.2 | AT146: 719.7 | AU146: =+DATEVALUE(TEXT(Table216[[#This Row],[Date]],"MM/DD/YYYY")) -> 2013-04-10
AP147: 4/9/2013 | AQ147: 1586.2 | AR147: 27.866 | AS147: 1552 | AT147: 731.85 | AU147: =+DATEVALUE(TEXT(Table216[[#This Row],[Date]],"MM/DD/YYYY")) -> 2013-04-09
AP148: 4/8/2013 | AQ148: 1572 | AR148: 27.12 | AS148: 1535.9 | AT148: 728.65 | AU148: =+DATEVALUE(TEXT(Table216[[#This Row],[Date]],"MM/DD/YYYY")) -> 2013-04-08
AP149: 4/5/2013 | AQ149: 1575.4 | AR149: 27.201 | AS149: 1534.4 | AT149: 722.75 | AU149: =+DATEVALUE(TEXT(Table216[[#This Row],[Date]],"MM/DD/YYYY")) -> 2013-04-05
AP150: 4/4/2013 | AQ150: 1551.8 | AR150: 26.748 | AS150: 1516.7 | AT150: 724.3 | AU150: =+DATEVALUE(TEXT(Table216[[#This Row],[Date]],"MM/DD/YYYY")) -> 2013-04-04
AP151: 4/3/2013 | AQ151: 1552.8 | AR151: 26.773 | AS151: 1539.8 | AT151: 754.3 | AU151: =+DATEVALUE(TEXT(Table216[[#This Row],[Date]],"MM/DD/YYYY")) -> 2013-04-03
AP152: 4/2/2013 | AQ152: 1575.1 | AR152: 27.217 | AS152: 1571.8 | AT152: 768.25 | AU152: =+DATEVALUE(TEXT(Table216[[#This Row],[Date]],"MM/DD/YYYY")) -> 2013-04-02
AP153: 4/1/2013 | AQ153: 1600 | AR153: 27.913 | AS153: 1596.4 | AT153: 782.8 | AU153: =+DATEVALUE(TEXT(Table216[[#This Row],[Date]],"MM/DD/YYYY")) -> 2013-04-01
AP154: 3/28/2013 | AQ154: 1594.8 | AR154: 28.292 | AS154: 1571.2 | AT154: 767.1 | AU154: =+DATEVALUE(TEXT(Table216[[#This Row],[Date]],"MM/DD/YYYY")) -> 2013-03-28
AP155: 3/27/2013 | AQ155: 1606.2 | AR155: 28.577 | AS155: 1579.8 | AT155: 767.15 | AU155: =+DATEVALUE(TEXT(Table216[[#This Row],[Date]],"MM/DD/YYYY")) -> 2013-03-27
AP156: 3/26/2013 | AQ156: 1595.8 | AR156: 28.644 | AS156: 1566 | AT156: 759.6 | AU156: =+DATEVALUE(TEXT(Table216[[#This Row],[Date]],"MM/DD/YYYY")) -> 2013-03-26
AP157: 3/25/2013 | AQ157: 1604.6 | AR157: 28.785 | AS157: 1582.4 | AT157: 755.55 | AU157: =+DATEVALUE(TEXT(Table216[[#This Row],[Date]],"MM/DD/YYYY")) -> 2013-03-25
AP158: 3/22/2013 | AQ158: 1606.2 | AR158: 28.666 | AS158: 1580.7 | AT158: 759.75 | AU158: =+DATEVALUE(TEXT(Table216[[#This Row],[Date]],"MM/DD/YYYY")) -> 2013-03-22
AP159: 3/21/2013 | AQ159: 1613.8 | AR159: 29.179 | AS159: 1579.1 | AT159: 755.05 | AU159: =+DATEVALUE(TEXT(Table216[[#This Row],[Date]],"MM/DD/YYYY")) -> 2013-03-21
AP160: 3/20/2013 | AQ160: 1607.5 | AR160: 28.783 | AS160: 1581.5 | AT160: 756.4 | AU160: =+DATEVALUE(TEXT(Table216[[#This Row],[Date]],"MM/DD/YYYY")) -> 2013-03-20
AP161: 3/19/2013 | AQ161: 1611.3 | AR161: 28.81 | AS161: 1554.4 | AT161: 733.4 | AU161: =+DATEVALUE(TEXT(Table216[[#This Row],[Date]],"MM/DD/YYYY")) -> 2013-03-19
AP162: 3/18/2013 | AQ162: 1604.6 | AR162: 28.841 | AS162: 1578.2 | AT162: 762.85 | AU162: =+DATEVALUE(TEXT(Table216[[#This Row],[Date]],"MM/DD/YYYY")) -> 2013-03-18
AP163: 3/15/2013 | AQ163: 1592.5 | AR163: 28.817 | AS163: 1591.4 | AT163: 773.7 | AU163: =+DATEVALUE(TEXT(Table216[[#This Row],[Date]],"MM/DD/YYYY")) -> 2013-03-15
AP164: 3/14/2013 | AQ164: 1590.6 | AR164: 28.772 | AS164: 1587.8 | AT164: 768.8 | AU164: =+DATEVALUE(TEXT(Table216[[#This Row],[Date]],"MM/DD/YYYY")) -> 2013-03-14
AP165: 3/13/2013 | AQ165: 1588.3 | AR165: 28.922 | AS165: 1591.1 | AT165: 769.25 | AU165: =+DATEVALUE(TEXT(Table216[[#This Row],[Date]],"MM/DD/YYYY")) -> 2013-03-13
AP166: 3/12/2013 | AQ166: 1591.5 | AR166: 29.131 | AS166: 1593 | AT166: 773.4 | AU166: =+DATEVALUE(TEXT(Table216[[#This Row],[Date]],"MM/DD/YYYY")) -> 2013-03-12
AP167: 3/11/2013 | AQ167: 1577.8 | AR167: 28.812 | AS167: 1599.2 | AT167: 777.1 | AU167: =+DATEVALUE(TEXT(Table216[[#This Row],[Date]],"MM/DD/YYYY")) -> 2013-03-11
AP168: 3/8/2013 | AQ168: 1576.6 | AR168: 28.909 | AS168: 1601.9 | AT168: 780.65 | AU168: =+DATEVALUE(TEXT(Table216[[#This Row],[Date]],"MM/DD/YYYY")) -> 2013-03-08
AP169: 3/7/2013 | AQ169: 1574.8 | AR169: 28.767 | AS169: 1593.1 | AT169: 757.05 | AU169: =+DATEVALUE(TEXT(Table216[[#This Row],[Date]],"MM/DD/YYYY")) -> 2013-03-07
AP170: 3/6/2013 | AQ170: 1574.6 | AR170: 28.76 | AS170: 1577.8 | AT170: 738.05 | AU170: =+DATEVALUE(TEXT(Table216[[#This Row],[Date]],"MM/DD/YYYY")) -> 2013-03-06
AP171: 3/5/2013 | AQ171: 1574.6 | AR171: 28.563 | AS171: 1583.7 | AT171: 732.6 | AU171: =+DATEVALUE(TEXT(Table216[[#This Row],[Date]],"MM/DD/YYYY")) -> 2013-03-05
AP172: 3/4/2013 | AQ172: 1572.1 | AR172: 28.457 | AS172: 1564.2 | AT172: 712.5 | AU172: =+DATEVALUE(TEXT(Table216[[#This Row],[Date]],"MM/DD/YYYY")) -> 2013-03-04
AP173: 3/1/2013 | AQ173: 1571.9 | AR173: 28.451 | AS173: 1571.5 | AT173: 718.65 | AU173: =+DATEVALUE(TEXT(Table216[[#This Row],[Date]],"MM/DD/YYYY")) -> 2013-03-01
AP174: 2/28/2013 | AQ174: 1577.7 | AR174: 28.395 | AS174: 1582.4 | AT174: 732.6 | AU174: =+DATEVALUE(TEXT(Table216[[#This Row],[Date]],"MM/DD/YYYY")) -> 2013-02-28
AP175: 2/27/2013 | AQ175: 1595.2 | AR175: 28.943 | AS175: 1599 | AT175: 743.15 | AU175: =+DATEVALUE(TEXT(Table216[[#This Row],[Date]],"MM/DD/YYYY")) -> 2013-02-27
AP176: 2/26/2013 | AQ176: 1615.2 | AR176: 29.256 | AS176: 1615.4 | AT176: 739 | AU176: =+DATEVALUE(TEXT(Table216[[#This Row],[Date]],"MM/DD/YYYY")) -> 2013-02-26
AP177: 2/25/2013 | AQ177: 1586.2 | AR177: 28.983 | AS177: 1619.6 | AT177: 748.65 | AU177: =+DATEVALUE(TEXT(Table216[[#This Row],[Date]],"MM/DD/YYYY")) -> 2013-02-25
AP178: 2/22/2013 | AQ178: 1572.4 | AR178: 28.456 | AS178: 1606.3 | AT178: 734.9 | AU178: =+DATEVALUE(TEXT(Table216[[#This Row],[Date]],"MM/DD/YYYY")) -> 2013-02-22
AP179: 2/21/2013 | AQ179: 1578.2 | AR179: 28.695 | AS179: 1618.9 | AT179: 733.2 | AU179: =+DATEVALUE(TEXT(Table216[[#This Row],[Date]],"MM/DD/YYYY")) -> 2013-02-21
AP180: 2/20/2013 | AQ180: 1577.6 | AR180: 28.615 | AS180: 1646 | AT180: 736 | AU180: =+DATEVALUE(TEXT(Table216[[#This Row],[Date]],"MM/DD/YYYY")) -> 2013-02-20
AP181: 2/19/2013 | AQ181: 1603.6 | AR181: 29.413 | AS181: 1696.4 | AT181: 763.75 | AU181: =+DATEVALUE(TEXT(Table216[[#This Row],[Date]],"MM/DD/YYYY")) -> 2013-02-19
AP182: 2/15/2013 | AQ182: 1608.8 | AR182: 29.839 | AS182: 1676.6 | AT182: 752.75 | AU182: =+DATEVALUE(TEXT(Table216[[#This Row],[Date]],"MM/DD/YYYY")) -> 2013-02-15
AP183: 2/14/2013 | AQ183: 1634.7 | AR183: 30.343 | AS183: 1709.8 | AT183: 763.65 | AU183: =+DATEVALUE(TEXT(Table216[[#This Row],[Date]],"MM/DD/YYYY")) -> 2013-02-14
AP184: 2/13/2013 | AQ184: 1644.2 | AR184: 30.854 | AS184: 1728.6 | AT184: 771.65 | AU184: =+DATEVALUE(TEXT(Table216[[#This Row],[Date]],"MM/DD/YYYY")) -> 2013-02-13
AP185: 2/12/2013 | AQ185: 1648.7 | AR185: 31.004 | AS185: 1716.1 | AT185: 771 | AU185: =+DATEVALUE(TEXT(Table216[[#This Row],[Date]],"MM/DD/YYYY")) -> 2013-02-12
AP186: 2/11/2013 | AQ186: 1648.2 | AR186: 30.895 | AS186: 1695 | AT186: 758.2 | AU186: =+DATEVALUE(TEXT(Table216[[#This Row],[Date]],"MM/DD/YYYY")) -> 2013-02-11
AP187: 2/8/2013 | AQ187: 1666 | AR187: 31.425 | AS187: 1713.5 | AT187: 751.1 | AU187: =+DATEVALUE(TEXT(Table216[[#This Row],[Date]],"MM/DD/YYYY")) -> 2013-02-08
AP188: 2/7/2013 | AQ188: 1670.4 | AR188: 31.387 | AS188: 1722.3 | AT188: 750.05 | AU188: =+DATEVALUE(TEXT(Table216[[#This Row],[Date]],"MM/DD/YYYY")) -> 2013-02-07
AP189: 2/6/2013 | AQ189: 1677.7 | AR189: 31.861 | AS189: 1736.5 | AT189: 764.4 | AU189: =+DATEVALUE(TEXT(Table216[[#This Row],[Date]],"MM/DD/YYYY")) -> 2013-02-06
AP190: 2/5/2013 | AQ190: 1672.4 | AR190: 31.859 | AS190: 1705.7 | AT190: 765.05 | AU190: =+DATEVALUE(TEXT(Table216[[#This Row],[Date]],"MM/DD/YYYY")) -> 2013-02-05
AP191: 2/4/2013 | AQ191: 1675.3 | AR191: 31.7 | AS191: 1696.6 | AT191: 757.4 | AU191: =+DATEVALUE(TEXT(Table216[[#This Row],[Date]],"MM/DD/YYYY")) -> 2013-02-04
AP192: 2/1/2013 | AQ192: 1669.4 | AR192: 31.942 | AS192: 1686.2 | AT192: 756 | AU192: =+DATEVALUE(TEXT(Table216[[#This Row],[Date]],"MM/DD/YYYY")) -> 2013-02-01
AP193: 1/31/2013 | AQ193: 1660.6 | AR193: 31.335 | AS193: 1673.9 | AT193: 745.3 | AU193: =+DATEVALUE(TEXT(Table216[[#This Row],[Date]],"MM/DD/YYYY")) -> 2013-01-31
AP194: 1/30/2013 | AQ194: 1679.9 | AR194: 32.152 | AS194: 1687.8 | AT194: 751 | AU194: =+DATEVALUE(TEXT(Table216[[#This Row],[Date]],"MM/DD/YYYY")) -> 2013-01-30
AP195: 1/29/2013 | AQ195: 1660.7 | AR195: 31.159 | AS195: 1677.4 | AT195: 749.05 | AU195: =+DATEVALUE(TEXT(Table216[[#This Row],[Date]],"MM/DD/YYYY")) -> 2013-01-29
AP196: 1/28/2013 | AQ196: 1652.4 | AR196: 30.756 | AS196: 1661.2 | AT196: 739.8 | AU196: =+DATEVALUE(TEXT(Table216[[#This Row],[Date]],"MM/DD/YYYY")) -> 2013-01-28
AP197: 1/25/2013 | AQ197: 1656.4 | AR197: 31.18 | AS197: 1693.9 | AT197: 740.25 | AU197: =+DATEVALUE(TEXT(Table216[[#This Row],[Date]],"MM/DD/YYYY")) -> 2013-01-25
AP198: 1/24/2013 | AQ198: 1669.5 | AR198: 31.695 | AS198: 1682.8 | AT198: 725.95 | AU198: =+DATEVALUE(TEXT(Table216[[#This Row],[Date]],"MM/DD/YYYY")) -> 2013-01-24
AP199: 1/23/2013 | AQ199: 1686.3 | AR199: 32.409 | AS199: 1691.7 | AT199: 725.45 | AU199: =+DATEVALUE(TEXT(Table216[[#This Row],[Date]],"MM/DD/YYYY")) -> 2013-01-23
AP200: 1/22/2013 | AQ200: 1692.8 | AR200: 32.147 | AS200: 1698.4 | AT200: 729.15 | AU200: =+DATEVALUE(TEXT(Table216[[#This Row],[Date]],"MM/DD/YYYY")) -> 2013-01-22
... 55 more rows

Sheet Fixings
AL1: Historical Fixing Prices
AL2: Date | AM2: XAU | AN2: XAG | AO2: XPT | AP2: XPD | AQ2: Date | AS2: Type | AT2: Symbol | AU2: Period | AV2: Date | AW2: Value | AY2: Day of Week | AZ2: Adjust | BA2: Previous | BC2: Date | BD2: Previous | BJ2: 1 | BK2: -2
AL3: 10/31/2013 | AM3: 1324 | AN3: 22.2 | AO3: 1450 | AP3: 742 | AQ3: =+DATEVALUE(TEXT(Table81[[#This Row],[Date]],"MM/DD/YYYY")) -> 2013-10-31 | AS3: LondonGold | AT3: AU | AU3: Evening | AV3: 10/31/2013 | AW3: 1324 | AY3: =+WEEKDAY(TEXT(Table86[[#This Row],[Date]],"MM/DD/YYYY")) -> 5 | AZ3: =+IF(AY3=6,-2,0) -> 0 | BA3: =+DATEVALUE(TEXT(Table86[[#This Row],[Date]]+Table88[[#This Row],[Adjust]],"MM/DD/YYYY")) -> 2013-10-31 | BC3: 10/30/2013 | BD3: 1354.75 | BE3: =+Table88[[#This Row],[Previous]] -> 2013-10-31 | BF3: =+WEEKDAY(BE3) -> 5 | BG3: =+VLOOKUP(BF3,$BJ$2:$BK$8,2,0) -> -1 | BH3: =+BE3+BG3 -> 2013-10-30 | BI3: =+TEXT(BH3,"MM/DD/YYYY") -> 10/30/2013 | BJ3: 2 | BK3: -1
AL4: 10/30/2013 | AM4: 1354.75 | AN4: 22.74 | AO4: 1477 | AP4: 749 | AQ4: =+DATEVALUE(TEXT(Table81[[#This Row],[Date]],"MM/DD/YYYY")) -> 2013-10-30 | AS4: LondonSilver | AT4: AG | AU4: Evening | AV4: 10/31/2013 | AW4: 22.2 | AY4: =+WEEKDAY(TEXT(Table86[[#This Row],[Date]],"MM/DD/YYYY")) -> 5 | AZ4: =+IF(AY4=6,-2,0) -> 0 | BA4: =+DATEVALUE(TEXT(Table86[[#This Row],[Date]]+Table88[[#This Row],[Adjust]],"MM/DD/YYYY")) -> 2013-10-31 | BC4: 10/30/2013 | BD4: 22.74 | BE4: =+Table88[[#This Row],[Previous]] -> 2013-10-31 | BF4: =+WEEKDAY(BE4) -> 5 | BG4: =+VLOOKUP(BF4,$BJ$2:$BK$8,2,0) -> -1 | BH4: =+BE4+BG4 -> 2013-10-30 | BI4: =+TEXT(BH4,"MM/DD/YYYY") -> 10/30/2013 | BJ4: 3 | BK4: -1
AL5: 10/29/2013 | AM5: 1349.25 | AN5: 22.31 | AO5: 1466 | AP5: 744 | AQ5: =+DATEVALUE(TEXT(Table81[[#This Row],[Date]],"MM/DD/YYYY")) -> 2013-10-29 | AS5: LondonPlatinum | AT5: PT | AU5: Evening | AV5: 10/31/2013 | AW5: 1450 | AY5: =+WEEKDAY(TEXT(Table86[[#This Row],[Date]],"MM/DD/YYYY")) -> 5 | AZ5: 0 | BA5: =+DATEVALUE(TEXT(Table86[[#This Row],[Date]]+Table88[[#This Row],[Adjust]],"MM/DD/YYYY")) -> 2013-10-31 | BC5: 10/30/2013 | BD5: 1477 | BE5: =+Table88[[#This Row],[Previous]] -> 2013-10-31 | BF5: 5 | BG5: -1 | BH5: 2013-10-30 | BI5: 10/30/2013 | BJ5: 4 | BK5: -1
AL6: 10/28/2013 | AM6: 1361 | AN6: 22.54 | AO6: 1462 | AP6: 742 | AQ6: =+DATEVALUE(TEXT(Table81[[#This Row],[Date]],"MM/DD/YYYY")) -> 2013-10-28 | AS6: LondonPalladium | AT6: PD | AU6: Evening | AV6: 10/31/2013 | AW6: 742 | AY6: =+WEEKDAY(TEXT(Table86[[#This Row],[Date]],"MM/DD/YYYY")) -> 5 | AZ6: 0 | BA6: =+DATEVALUE(TEXT(Table86[[#This Row],[Date]]+Table88[[#This Row],[Adjust]],"MM/DD/YYYY")) -> 2013-10-31 | BC6: 10/30/2013 | BD6: 749 | BE6: =+Table88[[#This Row],[Previous]] -> 2013-10-31 | BF6: 5 | BG6: -1 | BH6: 2013-10-30 | BI6: 10/30/2013 | BJ6: 5 | BK6: -1
AL7: 10/25/2013 | AM7: 1347.75 | AN7: 22.35 | AO7: 1440 | AP7: 733 | AQ7: =+DATEVALUE(TEXT(Table81[[#This Row],[Date]],"MM/DD/YYYY")) -> 2013-10-25 | BJ7: 6 | BK7: -1
B8: Fixings | AL8: 10/24/2013 | AM8: 1344.75 | AN8: 22.67 | AO8: 1447 | AP8: 749 | AQ8: =+DATEVALUE(TEXT(Table81[[#This Row],[Date]],"MM/DD/YYYY")) -> 2013-10-24 | BJ8: 7 | BK8: -1
AL9: 10/23/2013 | AM9: 1331.25 | AN9: 22.53 | AO9: 1440 | AP9: 748 | AQ9: =+DATEVALUE(TEXT(Table81[[#This Row],[Date]],"MM/DD/YYYY")) -> 2013-10-23
AL10: 10/22/2013 | AM10: 1333 | AN10: 22.06 | AO10: 1432 | AP10: 744 | AQ10: =+DATEVALUE(TEXT(Table81[[#This Row],[Date]],"MM/DD/YYYY")) -> 2013-10-22
C11: Daily Fixings | O11: Delayed Future Prices Heat Map | AL11: 10/21/2013 | AM11: 1317.5 | AN11: 22.09 | AO11: 1438 | AP11: 746 | AQ11: =+DATEVALUE(TEXT(Table81[[#This Row],[Date]],"MM/DD/YYYY")) -> 2013-10-21
C12: Supported Metals | E12: Gold, Silver, Platinum, Palladium | O12: The heat map below shows live delayed future prices from our APIs: | AL12: 10/18/2013 | AM12: 1316.5 | AN12: 21.87 | AO12: 1438 | AP12: 737 | AQ12: =+DATEVALUE(TEXT(Table81[[#This Row],[Date]],"MM/DD/YYYY")) -> 2013-10-18
C13: Currencies | E13: USD, GBP, EUR | O13: =+AU3 -> Evening | P13: Gold | R13: =+AU4 -> Evening | S13: Silver | U13: =+AU5 -> Evening | V13: Platinum | X13: =+AU6 -> Evening | Y13: Palladium | AL13: 10/17/2013 | AM13: 1319.25 | AN13: 21.72 | AO13: 1420 | AP13: 723 | AQ13: =+DATEVALUE(TEXT(Table81[[#This Row],[Date]],"MM/DD/YYYY")) -> 2013-10-17
C14: Supported Fields | O14: =+AW3 -> 1324 | R14: =+AW4 -> 22.2 | U14: =+AW5 -> 1450 | X14: =+AW6 -> 742 | AL14: 10/16/2013 | AM14: 1273.5 | AN14: 21.32 | AO14: 1392 | AP14: 708 | AQ14: =+DATEVALUE(TEXT(Table81[[#This Row],[Date]],"MM/DD/YYYY")) -> 2013-10-16
C15: Type | E15: Currency | G15: Date | I15: Unit | AL15: 10/15/2013 | AM15: 1270.5 | AN15: 20.49 | AO15: 1372 | AP15: 707 | AQ15: =+DATEVALUE(TEXT(Table81[[#This Row],[Date]],"MM/DD/YYYY")) -> 2013-10-15
C16: Symbol | E16: Period (Morning/Evening) | G16: Value | I16: Source | P16: =+AW3-BD3 -> -30.75 | S16: =+AW4-BD4 -> -0.54 | V16: =+AW5-BD5 -> -27 | Y16: =+AW6-BD6 -> -7 | AL16: 10/14/2013 | AM16: 1285.5 | AN16: 21.52 | AO16: 1379 | AP16: 715 | AQ16: =+DATEVALUE(TEXT(Table81[[#This Row],[Date]],"MM/DD/YYYY")) -> 2013-10-14
C17: Delay | E17: 5 to 10 minutes from publication by source | O17: =+AV3 -> 10/31/2013 | P17: =+P16/BD3 -> -0.02269791474 | R17: =+AV4 -> 10/31/2013 | S17: =+S16/BD4 -> -0.02374670185 | U17: =+AV5 -> 10/31/2013 | V17: =+V16/BD5 -> -0.0182802979 | X17: =+AV6 -> 10/31/2013 | Y17: =+Y16/BD6 -> -0.009345794393 | AL17: 10/11/2013 | AM17: 1265.5 | AN17: 21.52 | AO17: 1369 | AP17: 712 | AQ17: =+DATEVALUE(TEXT(Table81[[#This Row],[Date]],"MM/DD/YYYY")) -> 2013-10-11
C18: Availability | E18: Gold: Available twice a day at 10:30 AM GMT and 3:00 PM GMT | O18: To update the heat map enter your registration email or token below then click the refresh button. | AL18: 10/10/2013 | AM18: 1298.5 | AN18: 21.93 | AO18: 1385 | AP18: 705 | AQ18: =+DATEVALUE(TEXT(Table81[[#This Row],[Date]],"MM/DD/YYYY")) -> 2013-10-10
E19: Silver Available once a day at 12:00 PM GMT | O19: Registration Email: | Y19: Macros must be enabled in Excel | AL19: 10/9/2013 | AM19: 1304 | AN19: 22.1 | AO19: 1385 | AP19: 707 | AQ19: =+DATEVALUE(TEXT(Table81[[#This Row],[Date]],"MM/DD/YYYY")) -> 2013-10-09
E20: Platinum: Available twice a day at 9:45 AM GMT and 2:00 PM GMT | AL20: 10/8/2013 | AM20: 1329.5 | AN20: 22.3 | AO20: 1407 | AP20: 712 | AQ20: =+DATEVALUE(TEXT(Table81[[#This Row],[Date]],"MM/DD/YYYY")) -> 2013-10-08
E21: Palladium: Available twice a day at 9:45 AM GMT and 2:00 PM GMT | N21: Built with GetLastLondonFixings | U21: Clicking on Refresh will consume 5 of your free trial hits. If you run out of free trial hits (numbers are 0), please contact us. | AL21: 10/7/2013 | AM21: 1323.5 | AN21: 21.77 | AO21: 1386 | AP21: 697 | AQ21: =+DATEVALUE(TEXT(Table81[[#This Row],[Date]],"MM/DD/YYYY")) -> 2013-10-07
C22: Methodology | E22: The Fixings are an open process at which market participants can | AL22: 10/4/2013 | AM22: 1309.75 | AN22: 21.65 | AO22: 1386 | AP22: 706 | AQ22: =+DATEVALUE(TEXT(Table81[[#This Row],[Date]],"MM/DD/YYYY")) -> 2013-10-04
E23: transact business on the basis of a single quoted price. Orders can be | AL23: 10/3/2013 | AM23: 1316 | AN23: 21.57 | AO23: 1373 | AP23: 706 | AQ23: =+DATEVALUE(TEXT(Table81[[#This Row],[Date]],"MM/DD/YYYY")) -> 2013-10-03
E24: changed throughout the proceedings as the price is moved higher and lower until such time as buyers' and sellers' orders are satisfied | O24: Historical Fixing Charts | AL24: 10/2/2013 | AM24: 1306.25 | AN24: 21.14 | AO24: 1389 | AP24: 715 | AQ24: =+DATEVALUE(TEXT(Table81[[#This Row],[Date]],"MM/DD/YYYY")) -> 2013-10-02
E25: and the price is said to be 'fixed'. | AL25: 10/1/2013 | AM25: 1290.75 | AN25: 21.7 | AO25: 1377 | AP25: 719 | AQ25: =+DATEVALUE(TEXT(Table81[[#This Row],[Date]],"MM/DD/YYYY")) -> 2013-10-01
C26: Historical Fixings | O26: The charts below show one year of historical evening fixing data by metal. | AL26: 9/30/2013 | AM26: 1326.5 | AN26: 21.68 | AO26: 1411 | AP26: 726 | AQ26: =+DATEVALUE(TEXT(Table81[[#This Row],[Date]],"MM/DD/YYYY")) -> 2013-09-30
C27: Supported Fields | AL27: 9/27/2013 | AM27: 1341 | AN27: 21.61 | AO27: 1416 | AP27: 725 | AQ27: =+DATEVALUE(TEXT(Table81[[#This Row],[Date]],"MM/DD/YYYY")) -> 2013-09-27
C28: Type | E28: Currency | G28: Date | I28: Unit | AL28: 9/26/2013 | AM28: 1333 | AN28: 21.97 | AO28: 1424 | AP28: 724 | AQ28: =+DATEVALUE(TEXT(Table81[[#This Row],[Date]],"MM/DD/YYYY")) -> 2013-09-26
C29: Symbol | E29: Period (Morning/Evening) | G29: Value | I29: Source | AL29: 9/25/2013 | AM29: 1322.75 | AN29: 21.68 | AO29: 1426 | AP29: 719 | AQ29: =+DATEVALUE(TEXT(Table81[[#This Row],[Date]],"MM/DD/YYYY")) -> 2013-09-25
C30: Availability | E30: 5 to 10 minutes from publication by source | AL30: 9/24/2013 | AM30: 1314.25 | AN30: 21.44 | AO30: 1422 | AP30: 713 | AQ30: =+DATEVALUE(TEXT(Table81[[#This Row],[Date]],"MM/DD/YYYY")) -> 2013-09-24
C31: Currencies | E31: USD, GBP, EUR | AL31: 9/23/2013 | AM31: 1323 | AN31: 21.68 | AO31: 1424 | AP31: 711 | AQ31: =+DATEVALUE(TEXT(Table81[[#This Row],[Date]],"MM/DD/YYYY")) -> 2013-09-23
C32: Time Range | E32: Gold Morning USD | H32: 1/1/1985 to present | AL32: 9/20/2013 | AM32: 1349.25 | AN32: 22.74 | AO32: 1447 | AP32: 726 | AQ32: =+DATEVALUE(TEXT(Table81[[#This Row],[Date]],"MM/DD/YYYY")) -> 2013-09-20
E33: Gold Evening USD | H33: 1/1/1973 to present | AL33: 9/19/2013 | AM33: 1365.5 | AN33: 23 | AO33: 1469 | AP33: 726 | AQ33: =+DATEVALUE(TEXT(Table81[[#This Row],[Date]],"MM/DD/YYYY")) -> 2013-09-19
E34: Silver Evening USD | H34: 1/1/1975 to present | AL34: 9/18/2013 | AM34: 1301 | AN34: 21.47 | AO34: 1420 | AP34: 701 | AQ34: =+DATEVALUE(TEXT(Table81[[#This Row],[Date]],"MM/DD/YYYY")) -> 2013-09-18
E35: Platinum Morning USD | H35: 4/2/1990 to present | AL35: 9/17/2013 | AM35: 1312.25 | AN35: 21.97 | AO35: 1436 | AP35: 708 | AQ35: =+DATEVALUE(TEXT(Table81[[#This Row],[Date]],"MM/DD/YYYY")) -> 2013-09-17
E36: Platinum Evening | H36: 4/2/1990 to present | AL36: 9/16/2013 | AM36: 1324 | AN36: 21.88 | AO36: 1442 | AP36: 704 | AQ36: =+DATEVALUE(TEXT(Table81[[#This Row],[Date]],"MM/DD/YYYY")) -> 2013-09-16
E37: Palladium Morning | H37: 4/2/1990 to present | AL37: 9/13/2013 | AM37: 1318.5 | AN37: 21.72 | AO37: 1441 | AP37: 700 | AQ37: =+DATEVALUE(TEXT(Table81[[#This Row],[Date]],"MM/DD/YYYY")) -> 2013-09-13
E38: Palladium Evening | H38: 4/2/1990 to present | AL38: 9/12/2013 | AM38: 1328 | AN38: 22.67 | AO38: 1444 | AP38: 690 | AQ38: =+DATEVALUE(TEXT(Table81[[#This Row],[Date]],"MM/DD/YYYY")) -> 2013-09-12
E39: Data not available on weekends and holidays. | AL39: 9/11/2013 | AM39: 1363.75 | AN39: 22.91 | AO39: 1477 | AP39: 700 | AQ39: =+DATEVALUE(TEXT(Table81[[#This Row],[Date]],"MM/DD/YYYY")) -> 2013-09-11
C40: Charts | E40: Customizable static historical charts available. | AL40: 9/10/2013 | AM40: 1358.25 | AN40: 23.32 | AO40: 1471 | AP40: 690 | AQ40: =+DATEVALUE(TEXT(Table81[[#This Row],[Date]],"MM/DD/YYYY")) -> 2013-09-10
AL41: 9/9/2013 | AM41: 1390 | AN41: 23.64 | AO41: 1490 | AP41: 694 | AQ41: =+DATEVALUE(TEXT(Table81[[#This Row],[Date]],"MM/DD/YYYY")) -> 2013-09-09
C42: Developer Resources | AL42: 9/6/2013 | AM42: 1387 | AN42: 23.05 | AO42: 1498 | AP42: 699 | AQ42: =+DATEVALUE(TEXT(Table81[[#This Row],[Date]],"MM/DD/YYYY")) -> 2013-09-06
C43: Delayed Quote API | E43: Historical Quote API | G43: Historical Chart API | AL43: 9/5/2013 | AM43: 1385 | AN43: 23.52 | AO43: 1487 | AP43: 689 | AQ43: =+DATEVALUE(TEXT(Table81[[#This Row],[Date]],"MM/DD/YYYY")) -> 2013-09-05
AL44: 9/4/2013 | AM44: 1390 | AN44: 23.71 | AO44: 1496 | AP44: 699 | AQ44: =+DATEVALUE(TEXT(Table81[[#This Row],[Date]],"MM/DD/YYYY")) -> 2013-09-04
N45: Built with GetHistoricalFixingsRange | U45: Clicking on Refresh will consume 4 of your free trial hits. If you run out of free trial hits (numbers are 0), please contact us. | AL45: 9/3/2013 | AM45: 1399.5 | AN45: 24.21 | AO45: 1529 | AP45: 724 | AQ45: =+DATEVALUE(TEXT(Table81[[#This Row],[Date]],"MM/DD/YYYY")) -> 2013-09-03
AL46: 9/2/2013 | AM46: 1392.25 | AN46: 23.97 | AO46: 1524 | AP46: 724 | AQ46: =+DATEVALUE(TEXT(Table81[[#This Row],[Date]],"MM/DD/YYYY")) -> 2013-09-02
AL47: 8/30/2013 | AM47: 1394.75 | AN47: 23.64 | AO47: 1514 | AP47: 727 | AQ47: =+DATEVALUE(TEXT(Table81[[#This Row],[Date]],"MM/DD/YYYY")) -> 2013-08-30
AL48: 8/29/2013 | AM48: 1407.75 | AN48: 24.11 | AO48: 1527 | AP48: 741 | AQ48: =+DATEVALUE(TEXT(Table81[[#This Row],[Date]],"MM/DD/YYYY")) -> 2013-08-29
AL49: 8/28/2013 | AM49: 1419.5 | AN49: 24.74 | AO49: 1528 | AP49: 744 | AQ49: =+DATEVALUE(TEXT(Table81[[#This Row],[Date]],"MM/DD/YYYY")) -> 2013-08-28
AL50: 8/27/2013 | AM50: 1419.25 | AN50: 24.29 | AO50: 1546 | AP50: 747 | AQ50: =+DATEVALUE(TEXT(Table81[[#This Row],[Date]],"MM/DD/YYYY")) -> 2013-08-27
AL51: 8/23/2013 | AM51: 1377.5 | AN51: 23.06 | AO51: 1538 | AP51: 752 | AQ51: =+DATEVALUE(TEXT(Table81[[#This Row],[Date]],"MM/DD/YYYY")) -> 2013-08-23
AL52: 8/22/2013 | AM52: 1375.5 | AN52: 23.07 | AO52: 1523 | AP52: 750 | AQ52: =+DATEVALUE(TEXT(Table81[[#This Row],[Date]],"MM/DD/YYYY")) -> 2013-08-22
AL53: 8/21/2013 | AM53: 1363 | AN53: 22.94 | AO53: 1518 | AP53: 749 | AQ53: =+DATEVALUE(TEXT(Table81[[#This Row],[Date]],"MM/DD/YYYY")) -> 2013-08-21
AL54: 8/20/2013 | AM54: 1372.5 | AN54: 22.87 | AO54: 1512 | AP54: 748 | AQ54: =+DATEVALUE(TEXT(Table81[[#This Row],[Date]],"MM/DD/YYYY")) -> 2013-08-20
AL55: 8/19/2013 | AM55: 1365 | AN55: 23.23 | AO55: 1513 | AP55: 751 | AQ55: =+DATEVALUE(TEXT(Table81[[#This Row],[Date]],"MM/DD/YYYY")) -> 2013-08-19
AL56: 8/16/2013 | AM56: 1369.25 | AN56: 22.83 | AO56: 1524 | AP56: 762 | AQ56: =+DATEVALUE(TEXT(Table81[[#This Row],[Date]],"MM/DD/YYYY")) -> 2013-08-16
AL57: 8/15/2013 | AM57: 1329.75 | AN57: 22 | AO57: 1504 | AP57: 746 | AQ57: =+DATEVALUE(TEXT(Table81[[#This Row],[Date]],"MM/DD/YYYY")) -> 2013-08-15
AL58: 8/14/2013 | AM58: 1326.5 | AN58: 21.5 | AO58: 1491 | AP58: 737 | AQ58: =+DATEVALUE(TEXT(Table81[[#This Row],[Date]],"MM/DD/YYYY")) -> 2013-08-14
AL59: 8/13/2013 | AM59: 1328.5 | AN59: 21.46 | AO59: 1506 | AP59: 740 | AQ59: =+DATEVALUE(TEXT(Table81[[#This Row],[Date]],"MM/DD/YYYY")) -> 2013-08-13
AL60: 8/12/2013 | AM60: 1341 | AN60: 20.835 | AO60: 1503 | AP60: 742 | AQ60: =+DATEVALUE(TEXT(Table81[[#This Row],[Date]],"MM/DD/YYYY")) -> 2013-08-12
AL61: 8/9/2013 | AM61: 1309 | AN61: 20.31 | AO61: 1492 | AP61: 739 | AQ61: =+DATEVALUE(TEXT(Table81[[#This Row],[Date]],"MM/DD/YYYY")) -> 2013-08-09
AL62: 8/8/2013 | AM62: 1298.25 | AN62: 19.73 | AO62: 1465 | AP62: 739 | AQ62: =+DATEVALUE(TEXT(Table81[[#This Row],[Date]],"MM/DD/YYYY")) -> 2013-08-08
AL63: 8/7/2013 | AM63: 1282.5 | AN63: 19.27 | AO63: 1425 | AP63: 718 | AQ63: =+DATEVALUE(TEXT(Table81[[#This Row],[Date]],"MM/DD/YYYY")) -> 2013-08-07
AL64: 8/6/2013 | AM64: 1280.5 | AN64: 19.78 | AO64: 1430 | AP64: 724 | AQ64: =+DATEVALUE(TEXT(Table81[[#This Row],[Date]],"MM/DD/YYYY")) -> 2013-08-06
AL65: 8/5/2013 | AM65: 1304.75 | AN65: 19.76 | AO65: 1444 | AP65: 733 | AQ65: =+DATEVALUE(TEXT(Table81[[#This Row],[Date]],"MM/DD/YYYY")) -> 2013-08-05
AL66: 8/2/2013 | AM66: 1309.25 | AN66: 19.46 | AO66: 1436 | AP66: 730 | AQ66: =+DATEVALUE(TEXT(Table81[[#This Row],[Date]],"MM/DD/YYYY")) -> 2013-08-02
AL67: 8/1/2013 | AM67: 1315 | AN67: 19.72 | AO67: 1437 | AP67: 733 | AQ67: =+DATEVALUE(TEXT(Table81[[#This Row],[Date]],"MM/DD/YYYY")) -> 2013-08-01
AL68: 7/31/2013 | AM68: 1314.5 | AN68: 19.94 | AO68: 1433 | AP68: 733 | AQ68: =+DATEVALUE(TEXT(Table81[[#This Row],[Date]],"MM/DD/YYYY")) -> 2013-07-31
AL69: 7/30/2013 | AM69: 1324.15 | AN69: 19.68 | AO69: 1439 | AP69: 738 | AQ69: =+DATEVALUE(TEXT(Table81[[#This Row],[Date]],"MM/DD/YYYY")) -> 2013-07-30
AL70: 7/29/2013 | AM70: 1329.75 | AN70: 20.1 | AO70: 1436 | AP70: 731 | AQ70: =+DATEVALUE(TEXT(Table81[[#This Row],[Date]],"MM/DD/YYYY")) -> 2013-07-29
AL71: 7/26/2013 | AM71: 1331 | AN71: 20.02 | AO71: 1428 | AP71: 731 | AQ71: =+DATEVALUE(TEXT(Table81[[#This Row],[Date]],"MM/DD/YYYY")) -> 2013-07-26
AL72: 7/25/2013 | AM72: 1326 | AN72: 19.92 | AO72: 1443 | AP72: 743 | AQ72: =+DATEVALUE(TEXT(Table81[[#This Row],[Date]],"MM/DD/YYYY")) -> 2013-07-25
AL73: 7/24/2013 | AM73: 1335 | AN73: 20.395 | AO73: 1444 | AP73: 738 | AQ73: =+DATEVALUE(TEXT(Table81[[#This Row],[Date]],"MM/DD/YYYY")) -> 2013-07-24
AL74: 7/23/2013 | AM74: 1333.5 | AN74: 20.18 | AO74: 1424 | AP74: 734 | AQ74: =+DATEVALUE(TEXT(Table81[[#This Row],[Date]],"MM/DD/YYYY")) -> 2013-07-23
AL75: 7/22/2013 | AM75: 1327 | AN75: 19.95 | AO75: 1442 | AP75: 750 | AQ75: =+DATEVALUE(TEXT(Table81[[#This Row],[Date]],"MM/DD/YYYY")) -> 2013-07-22
AL76: 7/19/2013 | AM76: 1295.75 | AN76: 19.42 | AO76: 1422 | AP76: 743 | AQ76: =+DATEVALUE(TEXT(Table81[[#This Row],[Date]],"MM/DD/YYYY")) -> 2013-07-19
AL77: 7/18/2013 | AM77: 1283.25 | AN77: 19.49 | AO77: 1413 | AP77: 737 | AQ77: =+DATEVALUE(TEXT(Table81[[#This Row],[Date]],"MM/DD/YYYY")) -> 2013-07-18
AL78: 7/17/2013 | AM78: 1297.25 | AN78: 19.83 | AO78: 1424 | AP78: 734 | AQ78: =+DATEVALUE(TEXT(Table81[[#This Row],[Date]],"MM/DD/YYYY")) -> 2013-07-17
AL79: 7/16/2013 | AM79: 1291.5 | AN79: 19.95 | AO79: 1426 | AP79: 735 | AQ79: =+DATEVALUE(TEXT(Table81[[#This Row],[Date]],"MM/DD/YYYY")) -> 2013-07-16
AL80: 7/15/2013 | AM80: 1284.75 | AN80: 19.82 | AO80: 1410 | AP80: 724 | AQ80: =+DATEVALUE(TEXT(Table81[[#This Row],[Date]],"MM/DD/YYYY")) -> 2013-07-15
AL81: 7/12/2013 | AM81: 1279.75 | AN81: 19.66 | AO81: 1403 | AP81: 716 | AQ81: =+DATEVALUE(TEXT(Table81[[#This Row],[Date]],"MM/DD/YYYY")) -> 2013-07-12
AL82: 7/11/2013 | AM82: 1285 | AN82: 19.85 | AO82: 1401 | AP82: 723.5 | AQ82: =+DATEVALUE(TEXT(Table81[[#This Row],[Date]],"MM/DD/YYYY")) -> 2013-07-11
AL83: 7/10/2013 | AM83: 1256 | AN83: 19.37 | AO83: 1370 | AP83: 710 | AQ83: =+DATEVALUE(TEXT(Table81[[#This Row],[Date]],"MM/DD/YYYY")) -> 2013-07-10
AL84: 7/9/2013 | AM84: 1255.5 | AN84: 19.1 | AO84: 1362 | AP84: 699 | AQ84: =+DATEVALUE(TEXT(Table81[[#This Row],[Date]],"MM/DD/YYYY")) -> 2013-07-09
AL85: 7/8/2013 | AM85: 1235.25 | AN85: 19.16 | AO85: 1355 | AP85: 697 | AQ85: =+DATEVALUE(TEXT(Table81[[#This Row],[Date]],"MM/DD/YYYY")) -> 2013-07-08
AL86: 7/5/2013 | AM86: 1212.75 | AN86: 19.32 | AO86: 1327 | AP86: 669 | AQ86: =+DATEVALUE(TEXT(Table81[[#This Row],[Date]],"MM/DD/YYYY")) -> 2013-07-05
AL87: 7/4/2013 | AM87: 1251.75 | AN87: 19.57 | AO87: 1339 | AP87: 680 | AQ87: =+DATEVALUE(TEXT(Table81[[#This Row],[Date]],"MM/DD/YYYY")) -> 2013-07-04
AL88: 7/3/2013 | AM88: 1250 | AN88: 19.55 | AO88: 1361 | AP88: 684 | AQ88: =+DATEVALUE(TEXT(Table81[[#This Row],[Date]],"MM/DD/YYYY")) -> 2013-07-03
AL89: 7/2/2013 | AM89: 1252.5 | AN89: 19.62 | AO89: 1375 | AP89: 687 | AQ89: =+DATEVALUE(TEXT(Table81[[#This Row],[Date]],"MM/DD/YYYY")) -> 2013-07-02
AL90: 7/1/2013 | AM90: 1242.75 | AN90: 19.44 | AO90: 1357 | AP90: 678 | AQ90: =+DATEVALUE(TEXT(Table81[[#This Row],[Date]],"MM/DD/YYYY")) -> 2013-07-01
AL91: 6/28/2013 | AM91: 1192 | AN91: 18.86 | AO91: 1317 | AP91: 643 | AQ91: =+DATEVALUE(TEXT(Table81[[#This Row],[Date]],"MM/DD/YYYY")) -> 2013-06-28
AL92: 6/27/2013 | AM92: 1232.75 | AN92: 18.61 | AO92: 1318 | AP92: 643 | AQ92: =+DATEVALUE(TEXT(Table81[[#This Row],[Date]],"MM/DD/YYYY")) -> 2013-06-27
AL93: 6/26/2013 | AM93: 1236.25 | AN93: 18.67 | AO93: 1329 | AP93: 652 | AQ93: =+DATEVALUE(TEXT(Table81[[#This Row],[Date]],"MM/DD/YYYY")) -> 2013-06-26
AL94: 6/25/2013 | AM94: 1279 | AN94: 19.77 | AO94: 1349 | AP94: 672 | AQ94: =+DATEVALUE(TEXT(Table81[[#This Row],[Date]],"MM/DD/YYYY")) -> 2013-06-25
AL95: 6/24/2013 | AM95: 1286.75 | AN95: 19.65 | AO95: 1360 | AP95: 669 | AQ95: =+DATEVALUE(TEXT(Table81[[#This Row],[Date]],"MM/DD/YYYY")) -> 2013-06-24
AL96: 6/21/2013 | AM96: 1295.25 | AN96: 19.87 | AO96: 1365 | AP96: 672 | AQ96: =+DATEVALUE(TEXT(Table81[[#This Row],[Date]],"MM/DD/YYYY")) -> 2013-06-21
AL97: 6/20/2013 | AM97: 1292.5 | AN97: 20.24 | AO97: 1391 | AP97: 670 | AQ97: =+DATEVALUE(TEXT(Table81[[#This Row],[Date]],"MM/DD/YYYY")) -> 2013-06-20
AL98: 6/19/2013 | AM98: 1372.75 | AN98: 21.62 | AO98: 1437 | AP98: 706 | AQ98: =+DATEVALUE(TEXT(Table81[[#This Row],[Date]],"MM/DD/YYYY")) -> 2013-06-19
AL99: 6/18/2013 | AM99: 1366.75 | AN99: 21.8 | AO99: 1427 | AP99: 706 | AQ99: =+DATEVALUE(TEXT(Table81[[#This Row],[Date]],"MM/DD/YYYY")) -> 2013-06-18
AL100: 6/17/2013 | AM100: 1384.75 | AN100: 21.87 | AO100: 1443 | AP100: 721 | AQ100: =+DATEVALUE(TEXT(Table81[[#This Row],[Date]],"MM/DD/YYYY")) -> 2013-06-17
AL101: 6/14/2013 | AM101: 1391.25 | AN101: 21.69 | AO101: 1448 | AP101: 728 | AQ101: =+DATEVALUE(TEXT(Table81[[#This Row],[Date]],"MM/DD/YYYY")) -> 2013-06-14
AL102: 6/13/2013 | AM102: 1385 | AN102: 21.83 | AO102: 1458 | AP102: 743 | AQ102: =+DATEVALUE(TEXT(Table81[[#This Row],[Date]],"MM/DD/YYYY")) -> 2013-06-13
AL103: 6/12/2013 | AM103: 1382.75 | AN103: 21.78 | AO103: 1481.5 | AP103: 754 | AQ103: =+DATEVALUE(TEXT(Table81[[#This Row],[Date]],"MM/DD/YYYY")) -> 2013-06-12
AL104: 6/11/2013 | AM104: 1374.25 | AN104: 21.58 | AO104: 1487 | AP104: 762 | AQ104: =+DATEVALUE(TEXT(Table81[[#This Row],[Date]],"MM/DD/YYYY")) -> 2013-06-11
AL105: 6/10/2013 | AM105: 1383.25 | AN105: 21.81 | AO105: 1498 | AP105: 759 | AQ105: =+DATEVALUE(TEXT(Table81[[#This Row],[Date]],"MM/DD/YYYY")) -> 2013-06-10
AL106: 6/7/2013 | AM106: 1386 | AN106: 22.6 | AO106: 1505 | AP106: 754 | AQ106: =+DATEVALUE(TEXT(Table81[[#This Row],[Date]],"MM/DD/YYYY")) -> 2013-06-07
AL107: 6/6/2013 | AM107: 1400 | AN107: 22.62 | AO107: 1515 | AP107: 756.5 | AQ107: =+DATEVALUE(TEXT(Table81[[#This Row],[Date]],"MM/DD/YYYY")) -> 2013-06-06
AL108: 6/5/2013 | AM108: 1404 | AN108: 22.37 | AO108: 1503 | AP108: 754 | AQ108: =+DATEVALUE(TEXT(Table81[[#This Row],[Date]],"MM/DD/YYYY")) -> 2013-06-05
AL109: 6/4/2013 | AM109: 1399.5 | AN109: 22.51 | AO109: 1486 | AP109: 751 | AQ109: =+DATEVALUE(TEXT(Table81[[#This Row],[Date]],"MM/DD/YYYY")) -> 2013-06-04
AL110: 6/3/2013 | AM110: 1402.5 | AN110: 22.43 | AO110: 1487 | AP110: 755 | AQ110: =+DATEVALUE(TEXT(Table81[[#This Row],[Date]],"MM/DD/YYYY")) -> 2013-06-03
AL111: 5/31/2013 | AM111: 1394.5 | AN111: 22.57 | AO111: 1459 | AP111: 744 | AQ111: =+DATEVALUE(TEXT(Table81[[#This Row],[Date]],"MM/DD/YYYY")) -> 2013-05-31
AL112: 5/30/2013 | AM112: 1413.5 | AN112: 22.68 | AO112: 1464 | AP112: 754 | AQ112: =+DATEVALUE(TEXT(Table81[[#This Row],[Date]],"MM/DD/YYYY")) -> 2013-05-30
AL113: 5/29/2013 | AM113: 1382.5 | AN113: 22.36 | AO113: 1455 | AP113: 747 | AQ113: =+DATEVALUE(TEXT(Table81[[#This Row],[Date]],"MM/DD/YYYY")) -> 2013-05-29
AL114: 5/28/2013 | AM114: 1376.5 | AN114: 22.36 | AO114: 1450 | AP114: 733 | AQ114: =+DATEVALUE(TEXT(Table81[[#This Row],[Date]],"MM/DD/YYYY")) -> 2013-05-28
AL115: 5/24/2013 | AM115: 1390.25 | AN115: 22.38 | AO115: 1455 | AP115: 729 | AQ115: =+DATEVALUE(TEXT(Table81[[#This Row],[Date]],"MM/DD/YYYY")) -> 2013-05-24
AL116: 5/23/2013 | AM116: 1380.5 | AN116: 22.47 | AO116: 1455 | AP116: 739 | AQ116: =+DATEVALUE(TEXT(Table81[[#This Row],[Date]],"MM/DD/YYYY")) -> 2013-05-23
AL117: 5/22/2013 | AM117: 1408.5 | AN117: 22.62 | AO117: 1474 | AP117: 750 | AQ117: =+DATEVALUE(TEXT(Table81[[#This Row],[Date]],"MM/DD/YYYY")) -> 2013-05-22
AL118: 5/21/2013 | AM118: 1360.75 | AN118: 22.44 | AO118: 1456 | AP118: 741 | AQ118: =+DATEVALUE(TEXT(Table81[[#This Row],[Date]],"MM/DD/YYYY")) -> 2013-05-21
AL119: 5/20/2013 | AM119: 1354.75 | AN119: 21.66 | AO119: 1447 | AP119: 734 | AQ119: =+DATEVALUE(TEXT(Table81[[#This Row],[Date]],"MM/DD/YYYY")) -> 2013-05-20
AL120: 5/17/2013 | AM120: 1368.75 | AN120: 22.52 | AO120: 1470 | AP120: 736 | AQ120: =+DATEVALUE(TEXT(Table81[[#This Row],[Date]],"MM/DD/YYYY")) -> 2013-05-17
AL121: 5/16/2013 | AM121: 1381 | AN121: 22.26 | AO121: 1476 | AP121: 728 | AQ121: =+DATEVALUE(TEXT(Table81[[#This Row],[Date]],"MM/DD/YYYY")) -> 2013-05-16
AL122: 5/15/2013 | AM122: 1410 | AN122: 22.87 | AO122: 1496 | AP122: 727 | AQ122: =+DATEVALUE(TEXT(Table81[[#This Row],[Date]],"MM/DD/YYYY")) -> 2013-05-15
AL123: 5/14/2013 | AM123: 1433.75 | AN123: 23.44 | AO123: 1489 | AP123: 718 | AQ123: =+DATEVALUE(TEXT(Table81[[#This Row],[Date]],"MM/DD/YYYY")) -> 2013-05-14
AL124: 5/13/2013 | AM124: 1430.75 | AN124: 23.66 | AO124: 1485 | AP124: 705 | AQ124: =+DATEVALUE(TEXT(Table81[[#This Row],[Date]],"MM/DD/YYYY")) -> 2013-05-13
AL125: 5/10/2013 | AM125: 1426.5 | AN125: 23.37 | AO125: 1490 | AP125: 702 | AQ125: =+DATEVALUE(TEXT(Table81[[#This Row],[Date]],"MM/DD/YYYY")) -> 2013-05-10
AL126: 5/9/2013 | AM126: 1465.5 | AN126: 24.07 | AO126: 1506 | AP126: 695 | AQ126: =+DATEVALUE(TEXT(Table81[[#This Row],[Date]],"MM/DD/YYYY")) -> 2013-05-09
AL127: 5/8/2013 | AM127: 1468 | AN127: 23.86 | AO127: 1494 | AP127: 690 | AQ127: =+DATEVALUE(TEXT(Table81[[#This Row],[Date]],"MM/DD/YYYY")) -> 2013-05-08
AL128: 5/7/2013 | AM128: 1444.25 | AN128: 23.75 | AO128: 1484 | AP128: 682 | AQ128: =+DATEVALUE(TEXT(Table81[[#This Row],[Date]],"MM/DD/YYYY")) -> 2013-05-07
AL129: 5/3/2013 | AM129: 1469.25 | AN129: 24.25 | AO129: 1501 | AP129: 694 | AQ129: =+DATEVALUE(TEXT(Table81[[#This Row],[Date]],"MM/DD/YYYY")) -> 2013-05-03
AL130: 5/2/2013 | AM130: 1469.25 | AN130: 23.69 | AO130: 1487 | AP130: 688 | AQ130: =+DATEVALUE(TEXT(Table81[[#This Row],[Date]],"MM/DD/YYYY")) -> 2013-05-02
AL131: 5/1/2013 | AM131: 1454.75 | AN131: 23.97 | AO131: 1480 | AP131: 688 | AQ131: =+DATEVALUE(TEXT(Table81[[#This Row],[Date]],"MM/DD/YYYY")) -> 2013-05-01
AL132: 4/30/2013 | AM132: 1469 | AN132: 24.42 | AO132: 1507 | AP132: 699 | AQ132: =+DATEVALUE(TEXT(Table81[[#This Row],[Date]],"MM/DD/YYYY")) -> 2013-04-30
AL133: 4/29/2013 | AM133: 1467.5 | AN133: 24.27 | AO133: 1505 | AP133: 694 | AQ133: =+DATEVALUE(TEXT(Table81[[#This Row],[Date]],"MM/DD/YYYY")) -> 2013-04-29
AL134: 4/26/2013 | AM134: 1471.5 | AN134: 24.02 | AO134: 1483 | AP134: 681 | AQ134: =+DATEVALUE(TEXT(Table81[[#This Row],[Date]],"MM/DD/YYYY")) -> 2013-04-26
AL135: 4/25/2013 | AM135: 1451 | AN135: 23.3 | AO135: 1454 | AP135: 679 | AQ135: =+DATEVALUE(TEXT(Table81[[#This Row],[Date]],"MM/DD/YYYY")) -> 2013-04-25
AL136: 4/24/2013 | AM136: 1428.5 | AN136: 22.91 | AO136: 1427 | AP136: 674 | AQ136: =+DATEVALUE(TEXT(Table81[[#This Row],[Date]],"MM/DD/YYYY")) -> 2013-04-24
AL137: 4/23/2013 | AM137: 1408 | AN137: 23.01 | AO137: 1417 | AP137: 670 | AQ137: =+DATEVALUE(TEXT(Table81[[#This Row],[Date]],"MM/DD/YYYY")) -> 2013-04-23
AL138: 4/22/2013 | AM138: 1424.5 | AN138: 23.6 | AO138: 1434 | AP138: 683 | AQ138: =+DATEVALUE(TEXT(Table81[[#This Row],[Date]],"MM/DD/YYYY")) -> 2013-04-22
AL139: 4/19/2013 | AM139: 1405.5 | AN139: 23.66 | AO139: 1425 | AP139: 677 | AQ139: =+DATEVALUE(TEXT(Table81[[#This Row],[Date]],"MM/DD/YYYY")) -> 2013-04-19
AL140: 4/18/2013 | AM140: 1393.75 | AN140: 23.51 | AO140: 1432 | AP140: 670 | AQ140: =+DATEVALUE(TEXT(Table81[[#This Row],[Date]],"MM/DD/YYYY")) -> 2013-04-18
AL141: 4/17/2013 | AM141: 1392 | AN141: 23.31 | AO141: 1436 | AP141: 671 | AQ141: =+DATEVALUE(TEXT(Table81[[#This Row],[Date]],"MM/DD/YYYY")) -> 2013-04-17
AL142: 4/16/2013 | AM142: 1380 | AN142: 23.47 | AO142: 1446 | AP142: 681 | AQ142: =+DATEVALUE(TEXT(Table81[[#This Row],[Date]],"MM/DD/YYYY")) -> 2013-04-16
AL143: 4/15/2013 | AM143: 1395 | AN143: 23.54 | AO143: 1448 | AP143: 676 | AQ143: =+DATEVALUE(TEXT(Table81[[#This Row],[Date]],"MM/DD/YYYY")) -> 2013-04-15
AL144: 4/12/2013 | AM144: 1535.5 | AN144: 27.4 | AO144: 1514 | AP144: 715.5 | AQ144: =+DATEVALUE(TEXT(Table81[[#This Row],[Date]],"MM/DD/YYYY")) -> 2013-04-12
AL145: 4/11/2013 | AM145: 1565 | AN145: 27.57 | AO145: 1531.5 | AP145: 723 | AQ145: =+DATEVALUE(TEXT(Table81[[#This Row],[Date]],"MM/DD/YYYY")) -> 2013-04-11
AL146: 4/10/2013 | AM146: 1575 | AN146: 27.74 | AO146: 1533 | AP146: 713 | AQ146: =+DATEVALUE(TEXT(Table81[[#This Row],[Date]],"MM/DD/YYYY")) -> 2013-04-10
AL147: 4/9/2013 | AM147: 1577.25 | AN147: 27.25 | AO147: 1542 | AP147: 732 | AQ147: =+DATEVALUE(TEXT(Table81[[#This Row],[Date]],"MM/DD/YYYY")) -> 2013-04-09
AL148: 4/8/2013 | AM148: 1575 | AN148: 27.27 | AO148: 1532 | AP148: 730.5 | AQ148: =+DATEVALUE(TEXT(Table81[[#This Row],[Date]],"MM/DD/YYYY")) -> 2013-04-08
AL149: 4/5/2013 | AM149: 1568 | AN149: 26.97 | AO149: 1531 | AP149: 720 | AQ149: =+DATEVALUE(TEXT(Table81[[#This Row],[Date]],"MM/DD/YYYY")) -> 2013-04-05
AL150: 4/4/2013 | AM150: 1546.5 | AN150: 26.8 | AO150: 1526 | AP150: 737 | AQ150: =+DATEVALUE(TEXT(Table81[[#This Row],[Date]],"MM/DD/YYYY")) -> 2013-04-04
AL151: 4/3/2013 | AM151: 1574.75 | AN151: 27.19 | AO151: 1569 | AP151: 765 | AQ151: =+DATEVALUE(TEXT(Table81[[#This Row],[Date]],"MM/DD/YYYY")) -> 2013-04-03
AL152: 4/2/2013 | AM152: 1583.5 | AN152: 27.96 | AO152: 1579 | AP152: 773 | AQ152: =+DATEVALUE(TEXT(Table81[[#This Row],[Date]],"MM/DD/YYYY")) -> 2013-04-02
AL153: 3/28/2013 | AM153: 1598.25 | AN153: 28.64 | AO153: 1576 | AP153: 770 | AQ153: =+DATEVALUE(TEXT(Table81[[#This Row],[Date]],"MM/DD/YYYY")) -> 2013-03-28
AL154: 3/27/2013 | AM154: 1603 | AN154: 28.33 | AO154: 1575 | AP154: 760 | AQ154: =+DATEVALUE(TEXT(Table81[[#This Row],[Date]],"MM/DD/YYYY")) -> 2013-03-27
AL155: 3/26/2013 | AM155: 1598 | AN155: 28.83 | AO155: 1565 | AP155: 757 | AQ155: =+DATEVALUE(TEXT(Table81[[#This Row],[Date]],"MM/DD/YYYY")) -> 2013-03-26
AL156: 3/25/2013 | AM156: 1599.25 | AN156: 28.67 | AO156: 1575 | AP156: 761 | AQ156: =+DATEVALUE(TEXT(Table81[[#This Row],[Date]],"MM/DD/YYYY")) -> 2013-03-25
AL157: 3/22/2013 | AM157: 1607.75 | AN157: 29.06 | AO157: 1580 | AP157: 754 | AQ157: =+DATEVALUE(TEXT(Table81[[#This Row],[Date]],"MM/DD/YYYY")) -> 2013-03-22
AL158: 3/21/2013 | AM158: 1613.75 | AN158: 28.91 | AO158: 1583 | AP158: 761 | AQ158: =+DATEVALUE(TEXT(Table81[[#This Row],[Date]],"MM/DD/YYYY")) -> 2013-03-21
AL159: 3/20/2013 | AM159: 1607.5 | AN159: 28.9 | AO159: 1566 | AP159: 747 | AQ159: =+DATEVALUE(TEXT(Table81[[#This Row],[Date]],"MM/DD/YYYY")) -> 2013-03-20
AL160: 3/19/2013 | AM160: 1610.75 | AN160: 28.85 | AO160: 1579 | AP160: 761 | AQ160: =+DATEVALUE(TEXT(Table81[[#This Row],[Date]],"MM/DD/YYYY")) -> 2013-03-19
AL161: 3/18/2013 | AM161: 1603.75 | AN161: 28.8 | AO161: 1580 | AP161: 765 | AQ161: =+DATEVALUE(TEXT(Table81[[#This Row],[Date]],"MM/DD/YYYY")) -> 2013-03-18
AL162: 3/15/2013 | AM162: 1595.5 | AN162: 28.91 | AO162: 1593 | AP162: 774 | AQ162: =+DATEVALUE(TEXT(Table81[[#This Row],[Date]],"MM/DD/YYYY")) -> 2013-03-15
AL163: 3/14/2013 | AM163: 1586 | AN163: 28.64 | AO163: 1583 | AP163: 766 | AQ163: =+DATEVALUE(TEXT(Table81[[#This Row],[Date]],"MM/DD/YYYY")) -> 2013-03-14
AL164: 3/13/2013 | AM164: 1589.25 | AN164: 29.12 | AO164: 1595 | AP164: 773 | AQ164: =+DATEVALUE(TEXT(Table81[[#This Row],[Date]],"MM/DD/YYYY")) -> 2013-03-13
AL165: 3/12/2013 | AM165: 1594 | AN165: 29.25 | AO165: 1604 | AP165: 774 | AQ165: =+DATEVALUE(TEXT(Table81[[#This Row],[Date]],"MM/DD/YYYY")) -> 2013-03-12
AL166: 3/11/2013 | AM166: 1579 | AN166: 28.9 | AO166: 1594 | AP166: 774 | AQ166: =+DATEVALUE(TEXT(Table81[[#This Row],[Date]],"MM/DD/YYYY")) -> 2013-03-11
AL167: 3/8/2013 | AM167: 1581.75 | AN167: 28.78 | AO167: 1588 | AP167: 769 | AQ167: =+DATEVALUE(TEXT(Table81[[#This Row],[Date]],"MM/DD/YYYY")) -> 2013-03-08
AL168: 3/7/2013 | AM168: 1579.5 | AN168: 29.01 | AO168: 1596 | AP168: 755 | AQ168: =+DATEVALUE(TEXT(Table81[[#This Row],[Date]],"MM/DD/YYYY")) -> 2013-03-07
AL169: 3/6/2013 | AM169: 1574 | AN169: 28.74 | AO169: 1590 | AP169: 739 | AQ169: =+DATEVALUE(TEXT(Table81[[#This Row],[Date]],"MM/DD/YYYY")) -> 2013-03-06
AL170: 3/5/2013 | AM170: 1579.75 | AN170: 28.93 | AO170: 1587 | AP170: 728 | AQ170: =+DATEVALUE(TEXT(Table81[[#This Row],[Date]],"MM/DD/YYYY")) -> 2013-03-05
AL171: 3/4/2013 | AM171: 1574.25 | AN171: 28.69 | AO171: 1578 | AP171: 724 | AQ171: =+DATEVALUE(TEXT(Table81[[#This Row],[Date]],"MM/DD/YYYY")) -> 2013-03-04
AL172: 3/1/2013 | AM172: 1582.25 | AN172: 28.01 | AO172: 1579 | AP172: 721 | AQ172: =+DATEVALUE(TEXT(Table81[[#This Row],[Date]],"MM/DD/YYYY")) -> 2013-03-01
AL173: 2/28/2013 | AM173: 1588.5 | AN173: 28.95 | AO173: 1598 | AP173: 744 | AQ173: =+DATEVALUE(TEXT(Table81[[#This Row],[Date]],"MM/DD/YYYY")) -> 2013-02-28
AL174: 2/27/2013 | AM174: 1604.25 | AN174: 29.07 | AO174: 1609 | AP174: 741 | AQ174: =+DATEVALUE(TEXT(Table81[[#This Row],[Date]],"MM/DD/YYYY")) -> 2013-02-27
AL175: 2/26/2013 | AM175: 1590.5 | AN175: 28.75 | AO175: 1605 | AP175: 740 | AQ175: =+DATEVALUE(TEXT(Table81[[#This Row],[Date]],"MM/DD/YYYY")) -> 2013-02-26
AL176: 2/25/2013 | AM176: 1586.25 | AN176: 29.17 | AO176: 1620 | AP176: 748 | AQ176: =+DATEVALUE(TEXT(Table81[[#This Row],[Date]],"MM/DD/YYYY")) -> 2013-02-25
AL177: 2/22/2013 | AM177: 1576.5 | AN177: 28.79 | AO177: 1611 | AP177: 732 | AQ177: =+DATEVALUE(TEXT(Table81[[#This Row],[Date]],"MM/DD/YYYY")) -> 2013-02-22
AL178: 2/21/2013 | AM178: 1577 | AN178: 28.72 | AO178: 1607 | AP178: 722 | AQ178: =+DATEVALUE(TEXT(Table81[[#This Row],[Date]],"MM/DD/YYYY")) -> 2013-02-21
AL179: 2/20/2013 | AM179: 1588.5 | AN179: 29.11 | AO179: 1659 | AP179: 754 | AQ179: =+DATEVALUE(TEXT(Table81[[#This Row],[Date]],"MM/DD/YYYY")) -> 2013-02-20
AL180: 2/19/2013 | AM180: 1607.75 | AN180: 30 | AO180: 1685 | AP180: 763 | AQ180: =+DATEVALUE(TEXT(Table81[[#This Row],[Date]],"MM/DD/YYYY")) -> 2013-02-19
AL181: 2/18/2013 | AM181: 1610.75 | AN181: 30 | AO181: 1692 | AP181: 759 | AQ181: =+DATEVALUE(TEXT(Table81[[#This Row],[Date]],"MM/DD/YYYY")) -> 2013-02-18
AL182: 2/15/2013 | AM182: 1612.25 | AN182: 30.18 | AO182: 1676 | AP182: 754 | AQ182: =+DATEVALUE(TEXT(Table81[[#This Row],[Date]],"MM/DD/YYYY")) -> 2013-02-15
AL183: 2/14/2013 | AM183: 1646 | AN183: 30.88 | AO183: 1724 | AP183: 770 | AQ183: =+DATEVALUE(TEXT(Table81[[#This Row],[Date]],"MM/DD/YYYY")) -> 2013-02-14
AL184: 2/13/2013 | AM184: 1645 | AN184: 31.035 | AO184: 1730 | AP184: 773 | AQ184: =+DATEVALUE(TEXT(Table81[[#This Row],[Date]],"MM/DD/YYYY")) -> 2013-02-13
AL185: 2/12/2013 | AM185: 1647.5 | AN185: 30.84 | AO185: 1708 | AP185: 765 | AQ185: =+DATEVALUE(TEXT(Table81[[#This Row],[Date]],"MM/DD/YYYY")) -> 2013-02-12
AL186: 2/11/2013 | AM186: 1652 | AN186: 31.16 | AO186: 1708 | AP186: 749 | AQ186: =+DATEVALUE(TEXT(Table81[[#This Row],[Date]],"MM/DD/YYYY")) -> 2013-02-11
AL187: 2/8/2013 | AM187: 1668.25 | AN187: 31.52 | AO187: 1714 | AP187: 746 | AQ187: =+DATEVALUE(TEXT(Table81[[#This Row],[Date]],"MM/DD/YYYY")) -> 2013-02-08
AL188: 2/7/2013 | AM188: 1668 | AN188: 31.75 | AO188: 1736 | AP188: 764.5 | AQ188: =+DATEVALUE(TEXT(Table81[[#This Row],[Date]],"MM/DD/YYYY")) -> 2013-02-07
AL189: 2/6/2013 | AM189: 1674.25 | AN189: 31.7 | AO189: 1724 | AP189: 764 | AQ189: =+DATEVALUE(TEXT(Table81[[#This Row],[Date]],"MM/DD/YYYY")) -> 2013-02-06
AL190: 2/5/2013 | AM190: 1673.5 | AN190: 32.01 | AO190: 1702 | AP190: 756 | AQ190: =+DATEVALUE(TEXT(Table81[[#This Row],[Date]],"MM/DD/YYYY")) -> 2013-02-05
AL191: 2/4/2013 | AM191: 1666 | AN191: 31.51 | AO191: 1696 | AP191: 749 | AQ191: =+DATEVALUE(TEXT(Table81[[#This Row],[Date]],"MM/DD/YYYY")) -> 2013-02-04
AL192: 2/1/2013 | AM192: 1669 | AN192: 31.43 | AO192: 1687 | AP192: 745 | AQ192: =+DATEVALUE(TEXT(Table81[[#This Row],[Date]],"MM/DD/YYYY")) -> 2013-02-01
AL193: 1/31/2013 | AM193: 1664.75 | AN193: 32.03 | AO193: 1672 | AP193: 739 | AQ193: =+DATEVALUE(TEXT(Table81[[#This Row],[Date]],"MM/DD/YYYY")) -> 2013-01-31
AL194: 1/30/2013 | AM194: 1677.5 | AN194: 31.35 | AO194: 1688 | AP194: 756 | AQ194: =+DATEVALUE(TEXT(Table81[[#This Row],[Date]],"MM/DD/YYYY")) -> 2013-01-30
AL195: 1/29/2013 | AM195: 1663.5 | AN195: 31.06 | AO195: 1673 | AP195: 739 | AQ195: =+DATEVALUE(TEXT(Table81[[#This Row],[Date]],"MM/DD/YYYY")) -> 2013-01-29
AL196: 1/28/2013 | AM196: 1656.5 | AN196: 30.87 | AO196: 1681 | AP196: 742 | AQ196: =+DATEVALUE(TEXT(Table81[[#This Row],[Date]],"MM/DD/YYYY")) -> 2013-01-28
AL197: 1/25/2013 | AM197: 1660 | AN197: 31.56 | AO197: 1678 | AP197: 725 | AQ197: =+DATEVALUE(TEXT(Table81[[#This Row],[Date]],"MM/DD/YYYY")) -> 2013-01-25
AL198: 1/24/2013 | AM198: 1671 | AN198: 31.85 | AO198: 1680 | AP198: 722 | AQ198: =+DATEVALUE(TEXT(Table81[[#This Row],[Date]],"MM/DD/YYYY")) -> 2013-01-24
AL199: 1/23/2013 | AM199: 1690.25 | AN199: 32.23 | AO199: 1698.5 | AP199: 725 | AQ199: =+DATEVALUE(TEXT(Table81[[#This Row],[Date]],"MM/DD/YYYY")) -> 2013-01-23
AL200: 1/22/2013 | AM200: 1690.5 | AN200: 31.94 | AO200: 1687 | AP200: 717 | AQ200: =+DATEVALUE(TEXT(Table81[[#This Row],[Date]],"MM/DD/YYYY")) -> 2013-01-22
... 55 more rows

Sheet Usage & Hit Calculations
B8: Usage & Hit Calculations
C11: Usage
C12: XigniteMetals is priced on a usage basis. It is therefore important to understand how the use of the various APIs is going to affect your consumption. The subscription you choose will give you access to a certain number of hits (or credits) per month. The different APIs you will implement will consume these hits differently but consistently across different types of APIs. It is important to understand the difference between a request (an API call), a symbol, or a contract since a request can include multiple symbols or return many contracts:
D13: Spot Prices | E13: Future Prices | F13: Fixings
C14: Real-Time APIs | D14: 1 hit per symbol | E14: 1 hit per contract | F14: 1 hit per symbol
C15: Historical APIS | D15: 1 hit per symbol | E15: 1 hit per symbol | F15: 1 hit per symbol
C16: Chart APIs | D16: 1 hit per request | E16: 1 hit per request | F16: 1 hit per request
C17: Tick APIs | D17: 1 hit per request | E17: 1 hit per request | F17: 1 hit per request
C19: Note that certain XigniteMetals APIs have a unique hit count associated with them (e.g.
C20: GetSpotMarketSummary).
C22: On-Demand vs Caching
C23: There are two basic ways for your application to request data:
C24: On-Demand | D24: Your application pulls the data anytime it needs it.
C25: Caching | D25: Your application pulls and saves data so that it can use it many times.
C27: Of course, the more often data updates, the less practical it is to cache the data because it becomes stale. For instance you may choose to pull real-time data on-demand or every few minutes but cache historical data that updates only once a day.
C29: Example
C30: Let's say you want to build a widget for your web site showing real-time and historical metal prices. You decide to update the data every minute for each of the 4 metals and cache it. You will also pull historical data for each metal once a day. Your usage would be:
C31: Real-Time | D31: 4 metals * 60 mn/hr * 111 market hours/week * 4.3 weeks/mo = 114,552 hits
C32: Caching | D32: 4 metals * 21 days/mo = 84 hits
C34: So you would require a subscription that allows you at least a total of 114,636 hits monthly.
C35: For additional help, use the Hit Estimator in the next tab.

Sheet Hit Estimator
AQ1: Yes | AR1: 1 | AS1: 1 | AT1: 1 | AU1: sec | AV1: am | AW1: 8 hrs/day | AX1: =5*8*4.3*3600 -> 619200 | AY1: day | AZ1: 21 | BA1: 100 | BB1: 8 hrs/day | BC1: =5*8*4.3*3600 -> 619200
AQ2: No | AR2: 2 | AS2: 2 | AT2: =+AT1+1 -> 2 | AU2: min | AV2: pm | AW2: 16 hrs/day | AX2: =5*16*4.3*3600 -> 1238400 | AY2: week | AZ2: 4 | BA2: 500 | BB2: 16 hrs/day | BC2: =5*16*4.3*3600 -> 1238400
AR3: 3 | AS3: 3 | AT3: =+AT2+1 -> 3 | AU3: hr | AV3: both | AW3: mkt hours | AX3: =111*4.3*3600 -> 1718280 | AY3: month | AZ3: 1 | BA3: 1000 | BB3: mkt hours | BC3: =23.25*5*4.3*3600 -> 1799550
AS4: 4 | AT4: 4 | AU4: day | AW4: page views | BA4: 2500 | BB4: page views
AS5: 5 | AT5: 5 | BA5: 5000
AS6: 6 | AT6: 6
AS7: 7 | AT7: 7
B8: Hit Estimator | AS8: 8 | AT8: 8
AT9: 9
AT10: 10
C11: Options | N11: Help | AT11: 11
C12: Please fill out the information below to estimate your hit count based on your usage. | N12: Please see below for additional information on how to use this Hit Estimator. | AT12: 12
C13: What data will you be pulling? | AT13: 13
C14: Spot Prices | F14: Future Prices | I14: Fixings | AT14: 14
C15: Real-time | D15: Yes | F15: Delayed | G15: No | I15: Daily | J15: No | N15: Choose Yes if you plan to pull the corresponding type of data for this price type. | AT15: 15
C16: Historical | D16: No | F16: Historical | G16: No | I16: Historical | J16: No | N16: Choose Yes if you plan to pull historical data for this price type. | AT16: 16
C17: Charts | D17: No | F17: Charts | G17: No | I17: Charts | J17: No | N17: Choose Yes if you plan to generate charts for this price type. | AT17: 17
C18: Gold | D18: Yes | F18: Gold | G18: Yes | I18: Gold | J18: Yes | N18: Choose Yes if you plan to pull gold prices. | AT18: 18
C19: Silver | D19: Yes | F19: Silver | G19: Yes | I19: Silver | J19: Yes | N19: Choose Yes if you plan to pull silver prices. | AT19: 19
C20: Platinum | D20: Yes | F20: Platinum | G20: Yes | I20: Platinum | J20: Yes | N20: Choose Yes if you plan to pull platinum prices. | AT20: 20
C21: Palladium | D21: Yes | F21: Palladium | G21: Yes | I21: Palladium | J21: No | N21: Choose Yes if you plan to pull palladium prices. | AT21: 21
C22: Currencies | D22: 2 | I22: Currencies | J22: 1 | N22: Choose number of currencies you want to pull (where applicable). | AT22: 22
C23: How often will you be updating data for each metal? | I23: am/pm | J23: both | N23: Choose whether you will pull AM prices, PM prices or both (Fixings only). | AT23: 23
C24: Spot Prices | F24: Future Prices | I24: Fixings | AT24: 24
C25: Every | D25: 20 | E25: sec | F25: Every | G25: 5 | H25: sec | I25: Every | J25: day | N25: Choose how often you will update the data. For Spots and Futures, you can choose to update a certain number of time per second, minute or more. For Fixings, you can update daily, weekly or monthly. | AT25: 25
C26: Duration | D26: mkt hours | F26: Duration | G26: 8 hrs/day | N26: Choose the time window when you want to update the data. For Spots and Futures you can choose 8hrs/day, 16hrs/day or the complete market hours for that price type. You can also choose Page Views if you plan to pull the data every time a page is displayed on your site. | AT26: 26
C27: Page Views | D27: 0 | E27: /mo | F27: Page Views | G27: 0 | H27: /mo | N27: If you chose Page Views above, enter the number of page views per month for your web site. | AT27: 27
C28: How often will you be updating historical data for each metal? | AT28: 28
C29: Spot Prices | F29: Future Prices | I29: Fixings | AT29: 29
C30: Times per day | D30: 1 | F30: Times per day | G30: 1 | I30: Times per day | J30: 1 | N30: Choose how many times per day you plan to pull historical data for each metal. | AT30: 30
C31: How often will you be generating charts per dayfor each metal? | AT31: 31
C32: Spot Prices | F32: Future Prices | I32: Fixings | AT32: 32
C33: Historical | D33: 1 | F33: Historical | G33: 1 | I33: Historical | J33: 1 | N33: Choose how many times per day you plan to create historical charts for each metal. | AT33: 33
C34: Intraday | D34: 1 | N34: Choose how many times per day you plan to create intraday charts for each metal (only applies to Spot Prices). | AT34: 34
AT35: 35
C36: Results | AT36: 36
C37: Spot Prices | F37: Future Prices | I37: Fixings | AT37: 37
C38: Price Types | D38: =(+IF(D21="Yes",1,0)+IF(D20="Yes",1,0)+IF(D19="Yes",1,0)+IF(D18="Yes",1,0))*D22 -> 8 | F38: Price Types | G38: =(+IF(G21="Yes",1,0)+IF(G20="Yes",1,0)+IF(G19="Yes",1,0)+IF(G18="Yes",1,0)) -> 4 | I38: Price Types | J38: =(+IF(J21="Yes",1,0)+IF(J20="Yes",1,0)+IF(J18="Yes",1,0))*IF(J23="am",1,IF(J23="pm",1,2))*J22+IF(J19="Yes",1,0)*J22 -> 5 | N38: The number of price types you will pull based on the metal, currencies and am/pm options you chose above. | AT38: 38
C39: Real-time Hits | D39: =+IF(D15="Yes",IF(D26="page views",D27*D38,VLOOKUP(D26,AW1:AX3,2,0)*D51*D38),0) -> 687312 | F39: Delayed Hits | G39: =IF(G15="Yes",+IF(G26="page views",G27*G38,VLOOKUP(G26,BB1:BC3,2,0)*G51*G38),0) -> 0 | I39: Daily Hits | J39: =+IF(J15="Yes",J38*VLOOKUP(J25,AY1:AZ3,2,0),0) -> 0 | N39: The number of corresponding hits you will consume based on the options you chose. | AT39: 39
C40: Historical Hits | D40: =+IF(D16="Yes",D38*D30*21,0) -> 0 | F40: Historical Hits | G40: =+IF(G16="Yes",G38*G30*21,0) -> 0 | I40: Historical Hits | J40: =+IF(J16="Yes",J38*J30*21,0) -> 0 | N40: The number of historical hits you will consume based on the options you chose. | AT40: 40
C41: Chart Hits | D41: =+IF(D17="Yes",D38*(D33+D34)*21,0) -> 0 | F41: Chart Hits | G41: =+IF(G17="Yes",G38*(G33+G34)*21,0) -> 0 | I41: Chart Hits | J41: =+IF(J17="Yes",J38*(J33+J34)*21,0) -> 0 | N41: The number of chart hits you will consume based on the options you chose. | AT41: 41
C42: Total | D42: =+SUM(D39:D41) -> 687312 | F42: Total | G42: =+SUM(G39:G41) -> 0 | I42: Total | J42: =+SUM(J39:J41) -> 0 | AT42: 42
AT43: 43
C44: GRAND TOTAL | F44: =+J42+G42+D42 -> 687312 | I44: Subscription | J44: =+IF(F44<=600,"600", IF(F44<=6000,"6,000",IF(F44<=60000,"60,000",IF(F44<=600000,"600K",IF(F44<=6000000,"6M","Call Us"))))) -> 6M | N44: The total number of hits you will consume based on the assumptions above as well as the recommended subscription level you would need. | AT44: 44
AT45: 45
AT46: 46
AT47: 47
AT48: 48
AT49: 49
AT50: 50
D51: =+IF(E25="sec",1/D25,+IF(E25="min",1/(D25*60),IF(E25="hr",1/(D25*60*60)))) -> 0.05 | G51: =+IF(H25="sec",1/G25,+IF(H25="min",1/(G25*60),IF(H25="hr",1/(G25*60*60)))) -> 0.2 | AT51: 51
AT52: 52
AT53: 53
AT54: 54
AT55: 55
AT56: 56
AT57: 57
AT58: 58
AT59: 59
AT60: 60
AT61: 70
AT62: 80
AT63: 90
AT64: 100
AT65: 250
AT66: 500
AT67: 1000
AT68: 5000
AT69: 10000

Sheet Enabling Macros in Excel
B8: Enabling Macros In Excel 2010
C11: To enable macros in Excel, follow these steps:
C12: (1) Click the "File" menu then "Options"
C17: (2) Click "Trust Center"
C23: (3) Click "Trust Center Settings" | E23: (4) Click "Macro Settings"
C30: (5) Click "Enable all macros"
C42: (6) Click "OK"

Sheet Getting Help
B8: Getting Help
C11: If you need help, please use these resources:
C13: Support
C14: Web Support | D14: support home page | E14: If you already are a customer, use our support resources. Do not contact your sales rep for product questions otherwise we may not be able to track your issues correctly.
C15: Email Support | D15: support@xignite.com
C16: Call Support | D16: Monday-Friday 8:30am-5:30pm PST
D17: Toll-Free: 1 (866) 965-7627
D18: Phone: (650) 655-3700
D19: Fax: (650) 655-3703
C21: Sales
C22: Email us | D22: sales@xignite.com | E22: Contact sales if you have any questions about free trials, upgrades, new service subscriptions, or questions about your subscriptions.
C27: Accounting
C28: Email us | D28: accounting@xignite.com | E28: Contact accounting with any questions about billing or collections.
C31: Where To Find Us
C32: Headquarters | D32: 1825 South Grant Street, Suite 100 | E32: Directions
D33: San Mateo, CA 94402, U.S.A.
D34: Phone: (650) 655-3700
D35: Fax: (650) 655-3703
C37: New York | D37: 48 Wall Street, Suite 1100 | E37: Directions
D38: New York, NY 10005 U.S.A.
D39: Phone: (212) 918-4979
D40: Fax: (212) 918-4403
